{"text_format":"1","workbook":"xlsx","n_sheets":18,"sheets":["SELECTION","CP660 - каб.","СР611А + кабелі","Кабельные покрытия","СР606 герметик + труба","CFS-W P -пластикові труби","СР611А мастика труба","СР660-воздуховод","СР670+СР606 вент. проходка","СР601S (СР606) герметик + шов","Герметик-спрей CFS-SP WB","Герметик-спрей CFS-SP SIL","СP611А універсальна проходка","CP660 - унів.","СР670+СР606 универсал.проходка ","СР 651N","CFS-BL","СР636-универсальная проходка"],"not_rendered":{"charts":0,"images":44,"macros":1,"external_links":0,"defined_names":17,"comments":9,"pivot_tables":0},"unopened":[],"bounds":{"document_bytes":16777216,"sheet_cells":100000,"rows_first":2000,"rows_last":500,"rows_between":2000,"halvings":0,"cell_chars":16384,"cell_head_chars":4096},"cells_cut":0,"cells_raw":0,"read":"row_number_cap","date_system":"1900"}

{"sheet":"SELECTION","index":0,"n_rows":17,"n_cols":15,"rows_kept":17,"cut":false,"hidden":false,"merged":[[5,13,5,18],[8,14,10,17],[16,14,18,17],[12,14,14,17],[5,3,5,7]]}
[null,null,null,null,null,"Увага:"," цей файл не є офіційним програмним забезпеченням Hilti"]
[null,null,null,null,null,null,"розрахунки базуються на сертифікатах відповідності отриманих в Україні"]
[]
[]
[]
[null,null,null,"Выберите тип проходки",null,null,null,null,null,null,null,null,null,"Полезные ссылки"]
[]
[]
[null,null,null,null,null,null,null,null,null,null,null,null,null,null,"Каталог продукції"]
[]
[]
[]
[null,null,null,null,null,null,null,null,null,null,null,null,null,null,"Технічна бібліотека"]
[]
[]
[]
[null,null,null,null,null,null,null,null,null,null,null,null,null,null,"Інженерний відділ"]

{"sheet":"CP660 - каб.","index":1,"n_rows":49,"n_cols":28,"rows_kept":49,"cut":false,"hidden":true,"merged":[[2,3,4,9],[1,26,3,32]]}
[null,"Увага: цей файл не є офіційним програмним забезпеченням Hilti"]
[null,null,null,null,null,null,null,null,null,null,null,null,null,null,null,null,null,null,null,null,null,false,false,null,null,null,"Розрахунок витрат"]
[null," ",null,"Розрахунок витрат протипожежної піни СР660, СР620 для кабельної проходки"]
[]
[]
[]
[null,null,"Ширина проходки \"w\": ",200," мм"]
[]
[null,null,"Висота проходки \"h\" : ",100," мм",null,null,null,"Витрати піни на 1 проходку \"V\": ",{"$f":"S15/1000000","v":1.8},"л",null,null,null,null,null,"Объем проходки : ",null,{"$f":"IF(W2,(3.14*(D13/2)*(D13/2)*D11),(D7*D9*D11))","v":2000000},"мм3"]
[]
[null,null,"Товщина проходки \"ta\":    ",100," мм",null,null,null,"Загальний обсяг піни: ",{"$f":"S15*D17/1000000","v":180}," л"]
[]
[null,null,"Діаметр проходки: ",500," мм",null,null,null,null,null,null,null," "]
[]
[null,null,"Заповнення проходки мережами : ",10," %",null,null,null,null,null,null,null," ",null,null,null,"Расход на одну проходку:",null,{"$f":"IF(V2,1.1*S9*(100-D15)/100,S9*(100-D15)/100)","v":1800000}]
[]
[null,null,"Кількість проходок : ",100,"шт.",null,null,null,null,null,null,null,null,null,null,null,"Объем заполнения",null,{"$f":"S15*D17","v":180000000},"мм3"]
[]
[null,null,"Ціна 1 капсули СР660/620 (з ПДВ) : ",200," грн.",null,null,null,null,null,null,null,null,null,null,null,"Объем баллона химии : ",null,2100000,"мм3"]
[]
[]
[]
[]
[]
[null,null,null,null,null,"Загалом необхідно піни (капсул 325 мл) : ",{"$f":"ROUNDUP(J11/S19*1000000,0)","v":86},"шт.",null,null,null,null,null,null,null,null,null,null,null,{"$f":"S9*D15%","v":200000}]
[]
[null,null,null,null,null,"Загальна вартість рішення : ",{"$f":"G25*D19","v":17200},"грн. с НДС"]
[]
[null,"* Розрахунок приблизний, фактичний розрахунок залежить від процессу монтажа. "]
[null,"**У разі використання піни СР 620, отриманий результат потрібно помножити на 1,1"]
[]
[null,null,null,null,null,null,null,null,null,null,null,null,null,null,null,null,null,null,null,null,null,null,null,null,null,null,null,"3.1. Теоретична витрата (V, л) протипожежної піни Hilti CFS-F FX (CP 660) на одну проходку розраховується за формулою: "]
[null,null,null,null,null,null,null,null,null,null,null,null,null,null,null,null,null,null,null,null,null,null,null,null,null,null,null," V = (w * h * tA – (S1…Sn) * tA)) * 10 - 6,                                              (1)"]
[null,null,null,null,null,null,null,null,null,null,null,null,null,null,null,null,null,null,null,null,null,null,null,null,"Доп. условие",null,null,"де w та h – відповідно ширина та висота заповнення проходки, мм;"]
[null,null,null,null,null,null,null,null,null,null,null,null,null,null,null,null,null,null,null,null,null,null,null,null,"S1≥ 0;",null,null,"tA – товщина заповнення проходки, мм;"]
[null,null,null,null,null,null,null,null,null,null,null,null,null,null,null,null,null,null,null,null,null,null,null,null,"S2≥ 0;",null,null,"S1…Sn - площі перерізу інженерних комунікацій, які проходять крізь проходку, мм2."]
[null,null,null,null,null,null,null,null,null,null,null,null,null,null,null,null,null,null,null,null,null,null,null,null,"                                   S2 для пучков кабелей≥ 0;"]
[null,null,null,null,null,null,null,null,null,null,null,null,null,null,null,null,null,null,null,null,null,null,null,null,null,null,null,"Якщо переріз проходки є круглої форми, розрахунок витрати піни вести за формулою "]
[null,null,null,null,null,null,null,null,null,null,null,null,null,null,null,null,null,null,null,null,null,null,null,null,null,null,null,"                                            V = (0,785 * D2 * tA – (S1…Sn) * tA) * 10 - 6,                                        (2)"]
[null,"У разі виникнення питань, ласкаво просимо звязатись ",null,null,null,null,null,null,null,null,null,null,null,null,null,null,null,null,null,null,null,null,null,null,null,null,null,"де D – діаметр отвору, мм.                                                   "]
[null,"з регіональним представником Hilti чи клієнтською службою за тел. 0443905566",null,null,null,null,null,null,null,null,null,null,null,null,null,null,null,null,null,null,null,null,null,null,null,null,null,"Кількість тубів піни визначається шляхом ділення теоретичної витрати в л  на теоретичний вихід піни з одного туба, який складає приблизно 2,1 л за стандартних умов застосування: температура туба перед дозуванням 25°С, температура навколишнього середовища при дозуванні мінімум 10°С. "]
[null,null,null,null,null,null,null,null,null,null,null,null,null,null,null,null,null,null,null,null,null,null,null,null,null,null,null,"Теоретичний вихід піни з одного туба залежить від температури піни в тубі та температури виконання робіт та зворотньо пропорційний до них."]
[null,null,null,null,null,null,null,null,null,null,null,null,null,null,null,null,null,null,null,null,null,null,null,null,null,null,null,"При розрахунку кількості тубів необхідно заздалегідь враховувати кліматичні умови монтажу піни."]
[null,"Зрізані (зайві) шматочки піни допускається вкладати в наступні проходки і заповнювати піною."]
[null,null,null,null,null,null,null,null,null,null,null,null,null,null,null,null,null,null,null,null,null,null,null,null,null,null,null,"Важливо! При проектуванні складових проходки з заповненням піною CFS-F FX (CP 660) та розрахунку витрати піни необхідно дотримуватись обов’язкової умови – загальна максимальна площа перерізів інженерних комунікацій, які проходять крізь проходку не має складати більше 60% від загальної площі перерізу проходки."]
[]
[null,null,null,null,null,null,null,null,null,null,null,null,null,null,null,null,null,null,null,null,null,null,null,null,null,null,null,"􀉌􀉟􀉨􀉪􀉟􀉬􀉢􀉱􀉧􀉢􀉣 􀉜􀉢􀉯􀉿􀉞 􀉩􀉿􀉧􀉢 􀉡 􀉨􀉞􀉧􀉨􀉝􀉨 􀉬􀉭􀉛􀉚 􀉡􀉚􀉥􀉟􀉠􀉢􀉬ь 􀉜􀉿􀉞 􀉬􀉟􀉦􀉩􀉟􀉪􀉚􀉬􀉭􀉪􀉢 􀉩􀉿􀉧􀉢 􀉜 􀉬􀉭􀉛􀉿 􀉬􀉚 􀉬􀉟􀉦􀉩􀉟􀉪􀉚􀉬􀉭􀉪􀉢"]
[null,null,null,null,null,null,null,null,null,null,null,null,null,null,null,null,null,null,null,null,null,null,null,null,null,null,null,"􀉜􀉢􀉤􀉨􀉧􀉚􀉧􀉧􀉹 􀉪􀉨􀉛􀉿􀉬 􀉬􀉚 􀉡􀉜􀉨􀉪􀉨􀉬􀉧ь􀉨 􀉩􀉪􀉨􀉩􀉨􀉪􀉰􀉿􀉣􀉧􀉢􀉣 􀉞􀉨 􀉧􀉢􀉯."]
[null,null,null,null,null,null,null,null,null,null,null,null,null,null,null,null,null,null,null,null,null,null,null,null,null,null,null,"􀉉􀉪􀉢 􀉪􀉨􀉡􀉪􀉚􀉯􀉭􀉧􀉤􀉭 􀉤􀉿􀉥ь􀉤􀉨􀉫􀉬􀉿 􀉬􀉭􀉛􀉿􀉜 􀉧􀉟􀉨􀉛􀉯􀉿􀉞􀉧􀉨 􀉡􀉚􀉡􀉞􀉚􀉥􀉟􀉝􀉿􀉞ь 􀉜􀉪􀉚􀉯􀉨􀉜􀉭􀉜􀉚􀉬􀉢 􀉤􀉥􀉿􀉦􀉚􀉬􀉢􀉱􀉧􀉿 􀉭􀉦􀉨􀉜􀉢 􀉦􀉨􀉧􀉬􀉚􀉠􀉭 􀉩􀉿􀉧􀉢."]

{"sheet":"СР611А + кабелі","index":2,"n_rows":41,"n_cols":26,"rows_kept":41,"cut":false,"hidden":true,"merged":[[2,3,4,8],[2,25,4,31]]}
[null,"Увага: цей файл не є офіційним програмним забезпеченням Hilti"]
[null,null,null,null,null,null,null,null,null,null,null,null,null,null,null,null,null,null,null,null,false,false,false]
[null,null,null,"Розрахунок витрат мастики СР611А для кабельної проходки        ",null,null,null,null,null,null,null,null,null,null,null,null,null,null,null,null,null,null,null,null,null,"Розрахунок витрат"]
[]
[]
[]
[null,null,"Ширина проходки \"w\" : ",100," мм",null,null,"Товщина проходки  \"te\" :   ",100," мм"]
[]
[null,null,"Висота проходки \"h\" : ",100," мм",null,null,"Товщина шару мастики \"ta\" :   ",50," мм",null,null,null,null,null,null,"площадь проходки : ",null,{"$f":"IF(W2,3.14*((D11/2)*(D11/2)),D7*D9)","v":10000},"мм3"]
[]
[null,null,"Діаметр проходки : ",170," мм"]
[]
[null,null,"Заповн. проходки мережами: ",50," %",null,null,"Необхідний обсяг мастики : ",{"$f":"ROUNDUP(S18/1000*D15,0)","v":250}," мл",null,null,null,null,null,null,"объем заполнения ",null,{"$f":"IF(U2,S9*I9*2,S9*I9)","v":500000},"мм3"]
[]
[null,null,"Кількість проходок : ",1,"шт.",null,null,"Загальна вартість мастики : ",{"$f":"H23*D17*D15","v":200}," грн. з ПДВ",null,null,null,null,null,null,"объем баллона химии : ",null,310000,"мм3"]
[]
[null,null,"Ціна 1 шт СР611А :  ",200," грн. з ПДВ"]
[null,null,null,null,null,null,null,null,null,null,null,null,null,null,null,null,"объем заполнения (+10% запас) (*2)",null,{"$f":"(IF(V2, S13*1.1, S13))*(1-D13/100)","v":250000}]
[]
[]
[]
[]
[null,null,null,null,null,null,"Загалом необхідно мастики (капсул 310 мл) : ",{"$f":"ROUNDUP(S18/S15*D15,0)","v":1},"шт."]
[]
[null,"* Розрахунок приблизний, фактичний розрахунок залежить від процессу монтажа. "]
[]
[null,null,null,null,null,"Товщина шару мастики у розрахунки прийнята 25 мм"]
[]
[null,null,null,null,null,"Витрати мінеральної вати ",null,null,null,null,null,null,null,null,null,null,null,null,null,null,null,null,null,null,null,"Объем мастики"]
[null,null,null,null,null,"(довідково, втрати при різці не враховані):"]
[null,null,null,null,null,{"$f":"S9*IF(U2,I7-2*I9,I7-I9)*(100-D13)/100*D15/10^9","v":2.5000000000000001E-4},"куб.м.",null,null,null,null,null,null,null,null,null,null,null,null,null,null,null,null,null,null,"3.1. Теоретична витрата (V, мл) протипожежної мастики Hilti CFS-IS (CP 611A) на одну проходку розраховується за формулою: "]
[null,null,null,null,null,null,null,null,null,null,null,null,null,null,null,null,null,null,null,null,null,null,null,null,null,"              V = (w * h * tA – (S1…Sn) * tA) * 10 - 3,                                                                                (1)"]
[null,null,null,null,null,null,null,null,null,null,null,null,null,null,null,null,null,null,null,null,null,null,null,null,null,"де w та h – відповідно ширина та висота заповнення проходки, мм;"]
[null,null,null,null,null,null,null,null,null,null,null,null,null,null,null,null,null,null,null,null,null,null,null,null,null,"tA – товщина заповнення проходки, мм;"]
[null,"У разі виникнення питань, ласкаво просимо звязатись ",null,null,null,null,null,null,null,null,null,null,null,null,null,null,null,null,null,null,null,null,null,null,null,"S1…Sn - площі перерізу інженерних комунікацій, які проходять крізь проходку, мм2."]
[null,"з регіональним представником Hilti чи клієнтською службою за тел. 0443905566"]
[null,null,null,null,null,null,null,null,null,null,null,null,null,null,null,null,null,null,null,null,null,null,null,null,null,"Якщо переріз проходки є круглої форми, розрахунок витрати мастики вести за формулою "]
[null,null,null,null,null,null,null,null,null,null,null,null,null,null,null,null,null,null,null,null,null,null,null,null,null,"        V = (0,785 * D2 * tA – (S1…Sn) * tA) * 10 - 3,                                                                       (2)"]
[null,null,null,null,null,null,null,null,null,null,null,null,null,null,null,null,null,null,null,null,null,null,null,null,null,"де D – діаметр отвору, мм."]
[null,null,null,null,null,null,null,null,null,null,null,null,null,null,null,null,null,null,null,null,null,null,null,null,null,"При розрахунку кількості мастики враховувати кількість шарів нанесення (один чи два) для параметру tA в залежності від типу будівельної конструкції та можливе додаткове нанесення мастики згідно Типів ущільнення відповідно до Розділу 5 даного Регламенту.                                                   "]
[null,null,null,null,null,null,null,null,null,null,null,null,null,null,null,null,null,null,null,null,null,null,null,null,null,"Для розрахунку кількості тубів мастики необхідно розділити теоретичну витрату на 310 та прийняти найближче більше число."]

{"sheet":"Кабельные покрытия","index":3,"n_rows":26,"n_cols":22,"rows_kept":26,"cut":false,"hidden":true,"merged":[[1,4,3,9]]}
[null,null,"Увага: цей файл не є офіційним програмним забезпеченням Hilti",null,null,null,null,null,null,null,null,null,null,null,null,null,null,null,null,null,null,false]
[null,null,null,null,"Расчет расхода кабельного покрытия СР 678/679А",null,null,null,null,null,null,null,"Вспомогательные ячейки:"]
[]
[]
[null,null,null,null,null,null,null,null,null,null,null,null,null,"Площадь проходки: ",{"$f":"IF(V1,(D6*0.0005)*1.1,D6*0.0005)","v":3}]
[null,null,"Количество м² : ",6000,"м²"]
[]
[]
[null,null,"Цена 1 ведра (с НДС) : ",200,"грн. с НДС",null,"Общее кол-во ведер :",{"$f":"O11","v":195},"шт"]
[]
[null,null,null,null,null,null,null,null,null,null,null,null,null,"Общее количество ",{"$f":"ROUNDUP(O5/0.0154,0)","v":195}]
[]
[]
[null,null,null,null,null,null,"Общая стоимость решения : ",{"$f":"H9*D9","v":39000},"грн. с НДС"]
[]
[]
[]
[]
[]
[]
[]
[]
[]
[]
[null,"При возникновении дополнительных вопросов свяжитесь пожалуйста с "]
[null,"Вашим региональным представителем Hilti или клиентской службой по телефону 0443905566"]

{"sheet":"СР606 герметик + труба","index":4,"n_rows":38,"n_cols":25,"rows_kept":38,"cut":false,"hidden":true,"merged":[[2,4,4,9],[1,24,3,30]]}
[null,"Увага: цей файл не є офіційним програмним забезпеченням Hilti",null,null,null,null,null,null,null,null,null,null,null,null,null,null,null,null,"h вручну",null,"2 стор",0.1]
[null,null,null,null,null,null,null,null,null,null,null,null,null,null,null,null,null,null,false,true,false,false,null,null,"Розрахунок витрат"]
[null,null,null,null,"Розрахунок витрат герметика СР606 для трубних проходок у круглих отворах",null,null,null,null,null,null,null,null,null,"h=",{"$f":"IF(S2,J11,15)","v":15}]
[null,null,null,null,null,null,null,null,null,null,null,null,null,null,"V=",{"$f":"0.00157*P3*(D7^2-D9^2)","v":294.375}]
[]
[null,null,null,null,null,null,null,null,null,null,null,null,null,null,"з обох сторін?",{"$f":"IF(U2,P4*2,P4)","v":294.375}]
[null,null,"Діаметр отвору \"D\": ",150," мм",null,"Перевірка:"]
[null,null,null,null,null,null,null,"Розмір кільцевого зазору: ",{"$f":"(D7-D9)/2","v":25},"мм",null,null,null,null,"Запас 10%?",{"$f":"IF(V2,P6*1.1,P6)","v":294.375}]
[null,null,"Діаметр труби \"dc\" :   ",100," мм",null,null,"цей розмір  ",{"$f":"IF(N13,\"недопустимий\",\"допустимий\")","v":"допустимий"}]
[]
[null,null,"Кількість отворів : ",4,"шт.",null,null,null,null,15," мм",null,"Зазор завеликий",{"$f":"IF(35.5<I8,TRUE,FALSE)","v":false},"недопустимий"]
[null,null,null,null,null,null,"(товщина шару за замовчуванням: 15 мм)",null,null,null,null,null,"Зазор замалий",{"$f":"IF(10.5>I8,TRUE,FALSE)","v":false}]
[null,null,null,null,null,null,null,null,null,null,null,null,"Зазор недопустимий",{"$f":"OR(N11,N12)","v":false}]
[]
[]
[]
[]
[null,null,"Ціна за шт. (з ПДВ) :",200,"грн.",null,null,"Загальна вартість герметику : ",{"$f":"D18*H24","v":800},"грн.с НДС"]
[]
[null,null,null,null,null,null,null,"Загальний обсяг герметику: ",{"$f":"P8*D11","v":1177.5}," мл"]
[null,null,null,null,null,null,null,null,null,null,null,null,null,null,null,null,null,null,null,null,null,null,null,null,"1.    Розрахунок витрат матеріалів."]
[null,null,null,null,null,null,null,null,null,null,null,null,null,null,null,null,null,null,null,null,null,null,null,null,"3.1. Теоретична витрата (V, мл) протипожежного акрилового герметику Hilti CFS-S ACR (CP 606) на одну проходку з двостороннім нанесенням розраховується за формулою: "]
[null,null,null,null,null,null,null,null,null,null,null,null,null,null,null,null,null,null,null,null,null,null,null,null,"                         V = 0,00157 * h * (D2 – d2),                                                                                          (1)"]
[null,null,null,null,null,null,"Загалом необхідно герметику (капсул 310 мл):",{"$f":"ROUNDUP(I20/310,0)","v":4},"шт.",null,null,null,null,null,null,null,null,null,null,null,null,null,null,null,"де h – глибина заповнення прошарку, мм;"]
[null,null,null,null,null,null,null,null,null,null,null,null,null,null,null,null,null,null,null,null,null,null,null,null,"D – діаметр отвору проходки в будівельній конструкції, мм;"]
[null,"* Розрахунок приблизний, фактичні витрати залежать від процесу монтажу.",null,null,null,null,null,null,null,null,null,null,null,null,null,null,null,null,null,null,null,null,null,null,"d – зовнішній діаметр трубопроводу в проходці з або без врахування товщини ізоляції, мм."]
[null,null,null,null,null,null,null,null,null,null,null,null,null,null,null,null,null,null,null,null,null,null,null,null,"Для розрахунку кількості тубів герметику необхідно розділити теоретичну витрату на 310 та прийняти найближче більше число."]
[]
[]
[]
[]
[]
[]
[]
[]
[]
[null,"У разі виникнення питань, ласкаво просимо звязатись "]
[null,"з регіональним представником Hilti чи клієнтською службою за тел. 0443905566"]

{"sheet":"CFS-W P -пластикові труби","index":5,"n_rows":39,"n_cols":23,"rows_kept":39,"cut":false,"hidden":true,"merged":[[2,4,4,8]]}
[null,"Увага: цей файл не є офіційним програмним забезпеченням Hilti",null,null,null,null,null,null,null,null,null,null,null,null,null,null,null,"CP606 рахувати?","Гориз?","Половина товщини?"]
[null,null,null,null,null,null,null,null,null,null,null,null,null,null,null,null,null,false,false,false,null,null,"Теоретична витрата (L, м.п.) протипожежної стрічки Hilti CFS-W P на один трубопровід розраховується за формулою: "]
[null,null,null,null,"Розрахунок витрат манжет стрічкового типу        CFS-W P при облаштуванні проходок пластикових труб у круглому отворі",null,null,null,null,null,null,null,null,null,null,null,null,null,null,null,null,null,"                                L = ((3,14 * (dc + 2* tDЕ + 4) + ΣKN + 20)) * 10 - 3,       "]
[null,null,null,null,null,null,null,null,null,null,null,null,null,null,null,"Вспомогательные ячейки:",null,null,null,null,null,null,"де dc – зовнішній діаметр трубопроводу, мм; "]
[null,null,null,null,null,null,null,null,null,null,null,null,null,null,null,"Загальні витрати на одну сторону:",{"$f":"3.14*((D10*I7+(2*4+4*(I7-1))/2*I7))+20","v":189.56},"мм",null,null,null,null,"tDE – товщина ізоляції трубопроводу, мм; "]
[null,null,null,null,null,null,null,null,null,null,null,null,null,null,null,"З урахуванням гориз чи веритикальна:",{"$f":"IF(S2,Q5*2,Q5)","v":189.56},"мм",null,null,null,null,"4 – товщина першого шару стрічки, мм; "]
[null,null,"Діаметр отвору \"D\" :   ",130,"мм",null,null,"Кількість шарів стрічки : ",1,"шари",null,null,null,null,null,"З урахуванням половини товщини:",{"$f":"IF(T2,Q6/2,Q6)","v":189.56},"мм",null,null,null,null,"20 – фінішний нахлест останнього шару стрічки, мм, "]
[null,null,null,null,null,null,null,null,null,null,null,null,null,null,null,null,null,null,null,null,null,null,"KN = 3,14 * (dc + 2* tDЕ + 8…16) – доданок (-ки), який (-і) визначається кількістю шарів стрічки; числове значення приймається 8 – для 2-го шару, 12 – для 3-го шару, 16 – для 4-го шару стрічки "]
[null,null,null,null,null,null,null,null,null,null,null,null,null,null,null,null,null,null,null,null,null,null,"Також витрата стрічки може прийматися за таблицями нижче для технічних рішень згідно до Сертифікату відповідності. "]
[null,null,"Діаметр труби \"dc + 2*tDE\" :   ",50,"мм",null,null,null,null,null,null,null,null,null,null,null,null,null,null,null,null,null,"Якщо трубопровід є неізольованим, tDЕ = 0. "]
[null,null,"(Якщо є, то з ізоляцією)",null,null,null,null,null,null,null,null,null,null,null,null,null,null,null,null,null,null,null,"Підчас розрахунку витрати обов’язково враховувати кількість шарів стрічки згідно до п. 4.8. шляхом використання необхідної кількості доданків у формулах (1) та (2). "]
[null,null,"Кількість отворів: ",100,"шт.","Розхід стрічки на 1 місце \"L\" :  ",null,null,{"$f":"Q7/1000","v":0.18956000000000001},"м.п.",null,null,null,null,null,null,null,null,null,null,null,null,"Для розрахунку кількості упаковок стрічки необхідно розділити теоретичну витрату стрічки на 10 та прийняти найближче більше число. "]
[null,null,null,null,null,null,null,null,null,null,null,null,null,null,null,"Діаметр труби після намотки стрічки:",{"$f":"D10+4*I7","v":54},"мм"]
[null,null,"Ціна за 10 м манжети (з ПДВ) :",1000,"грн. з ПДВ",null,null,"Загальна кількість ленти СР646: ",{"$f":"I12*D12","v":18.956},"м.п.",null,null,null,null,null,"Обсяг герметику на дві сторони:",{"$f":"0.00157*10*(D7^2-Q13^2)","v":219.54879999999997},"мл"]
[null,null,null,null,null,null,null,"або",{"$f":"ROUNDUP(I14/10,0)","v":2},"упак"]
[null,null,"Ціна за капсулу (310 мл)"]
[null,null,"герметика (з ПДВ)  :",200,"грн. з ПДВ",null,null,"Загальна кільк. гермет. СР 606: ",{"$f":"IF(R2,Q14*D12,0)","v":0},"мл"]
[null,null,null,null,null,null,null,"або",{"$f":"ROUNDUP(I17/310,0)","v":0},"капсул"]
[null,null,null,null,null,null,null,null,null,"(Увага: герметік СР606 наноситься з обох боків проходки"]
[null,null,null,null,null,null,null,null,null,"незалежно від конфігурації горизонтальна/вертикальна)"]
[]
[]
[]
[null,null,null,null,"Загальна вартість рішення : ",null,null,{"$f":"I15*D14+I18*D17","v":2000},"грн"]
[null,"* Розрахунок приблизний. Фактичні витрати залежать від процесу монтажа."]
[]
[]
[]
[]
[]
[]
[]
[]
[]
[]
[]
[]
[null,"У разі виникнення питань, ласкаво просимо звязатись "]
[null,"з регіональним представником Hilti чи клієнтською службою за тел. 0443905566"]

{"sheet":"СР611А мастика труба","index":6,"n_rows":39,"n_cols":25,"rows_kept":39,"cut":false,"hidden":true,"merged":[[2,4,4,9],[1,24,3,30]]}
[null,"Увага: цей файл не є офіційним програмним забезпеченням Hilti",null,null,null,null,null,null,null,null,null,null,null,null,null,null,null,null,null,"прям","2 стор",0.1]
[null,null,null,null,null,null,null,null,null,null,null,null,null,null,null,null,null,null,null,false,true,false,null,null,"Розрахунок витрат"]
[null,null,null,null,"Розрахунок витрат мастики СР611А для проходок труб у круглому чи прямокутному отворі",null,null,null,null,null,null,null,null,null," круглая проходка : "]
[null,null,null,null,null,null,null,null,null,null,null,null,null,"V=",{"$f":"0.785*(D7^2-D9^2)*J9*10^-3","v":78.5},"ml"]
[]
[null,null,null,null,null,null,null,null,null,null,null,null,null,null," прямоугольная проходка : "]
[null,null,"Діаметр отвору \"D\" : ",70," мм",null,null,null,"Товщина проходки \"tE\" :  ",200," мм",null,null,"V=",{"$f":"(D12*D14-0.785*D9^2)*J9*10^-3","v":232.33750000000001},"ml"]
[]
[null,null,"Діаметр труби \"dc\" :    ",30," мм",null,null,null,"Товщина шару мастики  \"tA\": ",25," мм"]
[null,null,null,null,null,null,null,null,null,null,null,null,null,null,"прям/кругл"]
[null,null,null,null,null,null,null,"Перевірка:",null,null,null,null,null,"V=",{"$f":"IF(T2,O7,O4)","v":78.5},"ml"]
[null,null,"Ширина проходки \"w\"  :  ",100,"мм",null,null,"Розмір кільцевого зазору: ",{"$f":"(D7-D9)/2","v":20},"мм"]
[null,null,null,null,null,null,null,"цей розмір  ",{"$f":"IF(N22,\"недопустимий\",\"допустимий\")","v":"допустимий"},null,null,null,null,null,"2 стор?"]
[null,null,"Висота проходки \"h\" :  ",100,"мм",null,null,null,null,null,null,null,null,"V=",{"$f":"IF(U2,O11*2,O11)","v":157},"ml"]
[null,null,null,null,null,null,null,null,null,null,null,null,null,null,"10% - ?"]
[null,null,null,null,null,null,null,null,null,null,null,null,null,"V=",{"$f":"IF(V2,O14*1.1,O14)","v":157},"ml"]
[null,null,"Кількість отворів : ",2000," шт."]
[null,null,null,null,null,null,null,"Витрати мінеральної вати : ",{"$f":"O30*D17*10^-6","v":0.94199999999999995},"куб.м.",null,null,null,"недопустимий",null,null,null,null,null,null,null,null,null,null,"3.1. Теоретична витрата (V, мл) протипожежної мастики Hilti CFS-IS (CP 611A) на одну проходку розраховується за формулою: "]
[null,null,null,null,null,null,"(довідково, втрати при різці не враховані):"]
[null,null,"Ціна за шт. :",200," грн.з ПДВ",null,null,"Загальна кільк. мастики :  ",{"$f":"O16*D17","v":314000}," мл",null,null,"Зазор завеликий",{"$f":"IF(25<I12,TRUE,FALSE)","v":false},null,null,null,null,null,null,null,null,null,null,"              V = (w * h * tA – (S1…Sn) * tA) * 10 - 3,                                                                                (1)"]
[null,null,null,null,null,null,null,null,null,null,null,null,"Зазор замалий",{"$f":"IF(5>I12,TRUE,FALSE)","v":false},null,null,null,null,null,null,null,null,null,null,"де w та h – відповідно ширина та висота заповнення проходки, мм;"]
[null,null,null,null,null,null,null,"Загальна вартість мастики :  ",{"$f":"D20*I24","v":202600}," грн. з ПДВ",null,null,"Зазор недопустимий",{"$f":"OR(N20,N21)","v":false},null,null,null,null,null,null,null,null,null,null,"tA – товщина заповнення проходки, мм;"]
[null,null,null,null,null,null,null,null,null,null,null,null,null,null,null,null,null,null,null,null,null,null,null,null,"S1…Sn - площі перерізу інженерних комунікацій, які проходять крізь проходку, мм2."]
[null,null,null,null,null,null,null,"Загалом необхідно мастики (капсул 310 мл) :  ",{"$f":"ROUNDUP((I20/310),0)","v":1013},"шт.",null,null,"Обсяг круглої проходки",null,{"$f":"3.14*D7^2/4*J7*10^-3","v":769.30000000000007},"ml"]
[null,null,null,null,null,null,null,null,null,null,null,null,"Обсяг прямокутної проходки",null,{"$f":"D12*D14*J7*10^-3","v":2000},"ml",null,null,null,null,null,null,null,null,"Якщо переріз проходки є круглої форми, розрахунок витрати мастики вести за формулою "]
[null,"* Розрахунок приблизний. Фактичні витрати залежать від процесу монтажу.",null,null,null,null,null,null,null,null,null,null,"Обсяг труби",null,{"$f":"3.14*D9^2/4*J7*10^-3","v":141.30000000000001},"ml",null,null,null,null,null,null,null,null,"        V = (0,785 * D2 * tA – (S1…Sn) * tA) * 10 - 3,                                                                       (2)"]
[null,null,null,null,null,null,null,null,null,null,null,null,"Витрати мінвати у  кругл.",null,{"$f":"O24-O26-O14","v":471},null,null,null,null,null,null,null,null,null,"де D – діаметр отвору, мм."]
[null,null,null,null,null,null,null,null,null,null,null,null,"Витрати мінвати у  прямокут.",null,{"$f":"O25-O26-O14","v":1701.7},null,null,null,null,null,null,null,null,null,"При розрахунку кількості мастики враховувати кількість шарів нанесення (один чи два) для параметру tA в залежності від типу будівельної конструкції та можливе додаткове нанесення мастики згідно Типів ущільнення відповідно до Розділу 5 даного Регламенту.                                                   "]
[null,null,null,null,null,null,null,null,null,null,null,null,null,null,null,null,null,null,null,null,null,null,null,null,"Для розрахунку кількості тубів мастики необхідно розділити теоретичну витрату на 310 та прийняти найближче більше число."]
[null,null,null,null,null,null,null,null,null,null,null,null,"Витрати мінеральної вати",null,{"$f":"IF(T2,O28,O27)","v":471},"ml"]
[]
[]
[null,null,null,null,null,null,null,null,null,null,null,null,null,null,null,null,null,null,null,null,null,null," "]
[]
[]
[]
[]
[null,"У разі виникнення питань, ласкаво просимо звязатись "]
[null,"з регіональним представником Hilti чи клієнтською службою за тел. 0443905566"]

{"sheet":"СР660-воздуховод","index":7,"n_rows":40,"n_cols":25,"rows_kept":40,"cut":false,"hidden":true,"merged":[[1,5,3,9],[1,24,3,30]]}
[null,null,null,null,null,null,null,null,null,null,null,null,null,null,null,null,null,null,null,null,true,false]
[null,null,null,null,null,"Расчет расхода противопожарной пены СР660 для заделки узла пересечения воздуховодом ограждающих конструкций",null,null,null,null,null,null,null,null,null,null,null,null,null,null,null,null,null,null,"Расчет расхода"]
[]
[null,null,null,null,null,null,null,null,null,null,null,null,null,null,"Вспомогательные ячейки :"]
[]
[null,null,"Ширина отверстия : ",300,"мм",null,null,null,null,null,null,null,null,null,"Площадь отверстия: ",{"$f":"D6*D8","v":90000}]
[]
[null,null,"Высота отверстия : ",300,"мм","Расход пены 1 проходку:",null,null,{"$f":"P14/1000","v":19800},"мл",null,null,null,null,"Площадь воздуховода прямоугольного сечения: ",{"$f":"D12*D14","v":0}]
[]
[null,null,"Толщина проходки : ",200,"мм","Объем пены на выходе : ",null,null,{"$f":"P14*D18/1000","v":39600},"мл",null,null,null,null,"Площадь водуховода круглого сечения:",{"$f":"3.14*POWER(D16,2)/4","v":49062.5}]
[]
[null,null,"Ширина воздуховода : ",0,"мм",null,null,null,null,null,null,null,null,null,"Объем проходки: ",{"$f":"IF(V1,(P6-P10)*D10,(P6-P8)*D10)","v":18000000}]
[]
[null,null,"Высота воздуховода :",0,"мм",null,null,null,null,null,null,null,null,null,"Объем проходки + 10%:",{"$f":"IF(U1,P12*1.1,P12)","v":19800000}]
[null,null,null,null,null,null,null,null,null,null,null,null,null,null,"Объем баллона химии :",2100000]
[null,null,"Диаметр воздуховода :",250,"мм",null,null,null,null,null,null,null,null,null,null,2100000]
[]
[null,null,"Количество проходок : ",2,"шт."]
[]
[null,null,"Цена 1 капсулы СР660 (с НДС) : ",200,"грн."]
[null,null,null,null,null,null,null,null,null,null,null,null,null,null,null,null,null,null,null,null,null,null,null,null,"Объем пены"]
[]
[null,null,null,null,null,null,null,null,null,null,null,null,null,null,null,null,null,null,null,null,null,null,null,null,"V1=(S1-S2)*ta"]
[null,null,null,null,null,null,null,null,null,null,null,null,null,null,null,null,null,null,null,null,null,null,null,null,"где:"]
[null,null,null,null,null,null,null,null,null,null,null,null,null,null,null,null,null,null,null,null,null,null,null,null,"ta- толщина нанесение пены (зависит от применения);"]
[null,null,null,null,null,null,null,null,null,null,null,null,null,null,null,null,null,null,null,null,null,null,null,null,"S1- площадь проходки;"]
[null,null,null,null,null,null,null,null,null,null,null,null,null,null,null,null,null,null,null,null,null,null,null,null,"S2- площадь коммуникаций, проходящих через проходку;"]
[null,null,null,null,null,null," "]
[null,null,null,null,"Всего необходимо пены  (капсул 325 мл) :  ",{"$f":"ROUNDUP(I10/2100,0)","v":19},"шт."]
[]
[null,null,null,null,"Общая стоимость решения : ",{"$f":"F29*D20","v":3800},"грн."]
[]
[null,"* Расчет приблизительный. Фактический расход зависит от процесса монтажа."]
[]
[null,"При возникновении дополнительных вопросов свяжитесь пожалуйста с "]
[null,"Вашим региональным представителем Hilti или клиентской службой по телефону 88007005252"]
[]
[]
[null,"Обратите внимание ! Срезанные куски пены , которые оказались лишними ,"]
[null,"можно вкладывать в следующие отверстия и заполнять новой пеной ."]

{"sheet":"СР670+СР606 вент. проходка","index":8,"n_rows":1048576,"n_cols":24,"rows_kept":4500,"cut":true,"hidden":true,"merged":[[1,23,3,27],[2,3,4,8],[20,1,20,2]],"bounds":{"rows_first":2000,"rows_last":500,"rows_between":2000,"halvings":0},"read":"row_number_cap"}
[null,"Увага: цей файл не є офіційним програмним забезпеченням Hilti",null,null,null,null,null,null,null,null,null,null,null,null,null,null,null,null,"+10%"]
[null,null,null,null,null,null,null,null,null,null,null,null,null,null,null,null,null,null,false,null,null,null,null,"Розрахунок витрат:"]
[null,null,null,"Розрахунок витрат покриття СР670 та герметіка СР606 для проходки повітропропроводу",null,null,null,null,null,null,null,"Витрати СР670"]
[]
[null,null,null,null,null,null,null,null,null,null,null,"На поверхні проходки"]
[null,null,null,null,null,null,"Заповнення ",null,null,null,null,{"$f":"2*D7*D9*(100-I7)/100*I11*10^-3","v":960},"ml"]
[null,null,"Ширина проходки  \"w\" :  ",1200," мм",null,null,"проходки повітропроводами : ",80," %",null,"На нахльост на будівельні конструкції:"]
[null,null,null,null,null,null,null,null,null,null,null,{"$f":"2*2*(((D9+40)*20+(D7*20)))*I11*10^-3","v":259.2},"ml"]
[null,null,"Висота проходки \"h\" :   ",2000," мм",null,null,"Загальний периметр повітропроводів : ",12,"мм",null,"На прокрас мереж:"]
[null,null," Глибина заповнення",null,null,null,null,null,null,null,null,{"$f":"2*I9*I11*D13*10^-3","v":4.8},"ml"]
[null,null,"  мінватою \"tE\" :   ",100," мм",null,null,"Товщина мокрого шару CP670: ",1,"мм",null,"Загалом витрати на одну проходку з обох боків:"]
[null,null,null,null,null,null,null,null,null,null,null,{"$f":"L6+L8+L10","v":1224},"ml"]
[null,null,"Довжина нанесення  ",200,"мм",null,null,"Товщина мокрого шару CP606: ",1,"мм",null,"Загалом витрати на одну проходку +10%:"]
[null,null,"(покриття CP670 на повітропровід)",null,null,null,null,null,null,null,null,{"$f":"L12*1.1","v":1346.4},"ml"]
[null,null,"Кількість проходок : ",50,"шт."]
[null,null,null,null,null,null,null,null,null,null,null,"Витрати СР606"]
[null,null,"Ціна 1 ведра СР670  : ",3500," грн. з ПДВ",null,null,"Загальні витрати покриття СР670 : ",{"$f":"IF(S2,L14*D15*10^-3,L12*D15*10^-3)","v":61.2},"л"]
[null,null,null,null,null,null,null,null,null,null,null,"На периметр пліт:"]
[null,null,"Ціна 1 шт СР606  : ",220," грн. з ПДВ",null,null,"Загальні витрати герметика СР606 : ",{"$f":"IF(S2,L25*D15,L23*D15)","v":32060.000000000004},"мл",null,{"$f":"2*(D9+D7)*D11*10^-3","v":640},"ml"]
[null,null,null,null,null,null,null,null,null,null,null,"На ущільнення мереж:"]
[null,"Ціна мин. ваты за м³ : ",null,3500," грн. з ПДВ",null,null,"Загальні витрати мін. вати : ",{"$f":"IF(S2,L30*D15,L28*D15)","v":2.4}," м³ ",null,{"$f":"I9*D11*I13*10^-3","v":1.2},"ml"]
[null,null,null,null,null,null,null,null,null,null,null,"Загалом витрати СР606:"]
[null,null,null,null,null,null,null,null,null," ",null,{"$f":"L19+L21","v":641.20000000000005},"ml"]
[null,null,null,null,null,null,null,null,null,null,null,"Загалом витрати СР606 +10%:"]
[null,null,null,null,null,null,"Загалом необхідно покриття СР670 (відер 4л): ",{"$f":"ROUNDUP((I17/4),0)","v":16},"шт.",null,null,{"$f":"L23*1.1","v":705.32000000000016},"ml",null,null,null,null,null,null,null,null,"Доп. условия",null,"1. Розрахунок витрат матеріалів."]
[null,null,null,null,null,null,"Загалом необхідно герметику СР606 (капсул 310 мл): ",{"$f":"ROUNDUP(I19/310,0)","v":104},"шт.",null,null,null,null,null,null,null,null,null,null,null,null,null,null,"3.1.  Теоретична витрата (V, л) протипожежного покриття Hilti CFS-CT (CP 670) розраховується за формулою: "]
[null,null,null,null,null,null,null,null,null,null,null,"Витрати мінвати:",null,null,null,null,null,null,null,null,null,"S1=0",null," V = (2 * (h * w - S1…Sn) * f1 + 2 * (2 * ((h + 0,2) * 0,1) * (w * 0,1)) + (P1…Pn) * f1 * f2)) * 10 - 6     (1)"]
[null,null,null,null,null,null,"Загальна вартість рішення стоимость решения : ",{"$f":"D17*H25+D19*H26+D21*I21","v":87280}," грн. с НДС",null,null,{"$f":"D7*D9*D11*(100-I7)/100*10^-9","v":4.8000000000000001E-2},"м куб",null,null,null,null,null,null,null,null,"S2=0",null,"де h та w – габаритні розміри проходки, мм;"]
[null,null,null,null,null,null,null,null,null,null,null,"з урахуванням +10%",null,null,null,null,null,null,null,null,null,"S3=0",null,"S1…Sn – площі перерізу комунікацій, які проходять крізь проходку, мм2;"]
[null,"* Розрахунок приблизний. Фактичні витрати залежать від умов монтажу.",null,null,null,null,null,null,null,null,null,{"$f":"L28*1.1","v":5.2800000000000007E-2},"м куб",null,null,null,null,null,null,null,null,"S4=0",null,"f1 = 1,3 – стандартна товщина мокрого шару покриття, мм;"]
[null,null,null,null,null,null,null,null,null,null,null,null,null,null,null,null,null,null,null,null,null,"S5=50",null,"P1…Pn – периметри комунікацій, які проходять крізь проходку, мм;"]
[null,null,null,null,null,null,null,null,null,null,null,null,null,null,null,null,null,null,null,null,null,"S6=3",null,"f2 = 200 – довжина нанесення покриття від площини проходки, мм."]
[null,null,null,null,null,null,null,null,null,null,null,null,null,null,null,null,null,null,null,null,null,"S7=3",null,"Для розрахунку витрати покриття для отримання іншої товщини шару сухого покриття або іншої ширини нанесення (наприклад, згідно до п. 5.1.2) необхідно відповідне коригування коефіцієнтів f1 та f2."]
[null,null,null,null,null,null,null,null,null,null,null,null,null,null,null,null,null,null,null,null,null,"S8=0",null,"Для розрахунку кількості ємностей покриття необхідно розділити теоретичну витрату на 4 та прийняти найближче більше число."]
[null,null,null,null,null,null,null,null,null,null,null,null,null,null,null,null,null,null,null,null,null,"S9=17"]
[null,null,null,null,null,null,null,null,null,null,null,null,null,null,null,null,null,null,null,null,null,"S10=17",null,"3.2. Теоретична витрата (V, мл) протипожежного акрилового герметику Hilti CFS-S ACR (CP 606) розраховується за формулою: "]
[null,null,null,null,null,null,null,null,null,null,null,null,null,null,null,null,null,null,null,null,null,"S11=0",null,"                 V = (2 * (h * Te) * f + 2 * (w * Te) * f + (P1…Pn) * Te * f) * 10 - 3                                             (2)"]
[null,null,null,null,null,null,null,null,null,null,null,null,null,null,null,null,null,null,null,null,null,"S12=30",null,"де h та w – габаритні розміри проходки, мм;"]
[null,null,null,null,null,null,null,null,null,null,null,null,null,null,null,null,null,null,null,null,null,"S13=0",null,"f = 1 – стандартна товщина шару герметику, мм;"]
[null,null,null,null,null,null,null,null,null,null,null,null,null,null,null,null,null,null,null,null,null,"S14=40",null,"P1…Pn – периметри комунікацій, які проходять крізь проходку, мм."]
[null,null,null,null,null,null,null,null,null,null,null,null,null,null,null,null,null,null,null,null,null,null,null,"Te – товщина проходки, мм."]
[null,null,null,null,null,null,null,null,null,null,null,null,null,null,null,null,null,null,null,null,null,null,null,"Для розрахунку кількості тубів герметику необхідно розділити теоретичну витрату на 310 та прийняти найближче більше число."]
[]
[null,"У разі виникнення питань, ласкаво просимо звязатись ",null,null,null,null,null,null,null,null,null,null,null,null,null,null,null,null,null,null,null,null,null,"3.3. Теоретична витрата (V, м3) негорючої мінеральної вати розраховується за формулою:"]
[null,"з регіональним представником Hilti чи клієнтською службою за тел. 0443905566",null,null,null,null,null,null,null,null,null,null,null,null,null,null,null,null,null,null,null,null,null,"       V = h * w * Te - (P1…Pn) * Te                                                                                                  (3)"]
[null,null,null,null,null,null,null,null,null,null,null,null,null,null,null,null,null,null,null,null,null,null,null,"де h та w – габаритні розміри проходки, м;"]
[null,null,null,null,null,null,null,null,null,null,null,null,null,null,null,null,null,null,null,null,null,null,null,"P1…Pn – периметри комунікацій, які проходять крізь проходку, м;"]
[null,null,null,null,null,null,null,null,null,null,null,null,null,null,null,null,null,null,null,null,null,null,null,"Te – товщина проходки, м."]
[]
[null,null,null,null,null,null,null,null,null,null,null,null,null,null,null,null,null,null,null,null,null,null,null,"3.2. Теоретична витрата (L, м.п.) протипожежної стрічки Hilti CFS-W P на один трубопровід розраховується за формулою: "]
[null,null,null,null,null,null,null,null,null,null,null,null,null,null,null,null,null,null,null,null,null,null,null,"                                L = ((3,14 * (dc + 2* tDЕ + 4) + ΣKN + 20)) * 10 - 3,       "]
[null,null,null,null,null,null,null,null,null,null,null,null,null,null,null,null,null,null,null,null,null,null,null,"де dc – зовнішній діаметр трубопроводу, мм; "]
[null,null,null,null,null,null,null,null,null,null,null,null,null,null,null,null,null,null,null,null,null,null,null,"tDE – товщина ізоляції трубопроводу, мм; "]
[null,null,null,null,null,null,null,null,null,null,null,null,null,null,null,null,null,null,null,null,null,null,null,"4 – товщина першого шару стрічки, мм; "]
[null,null,null,null,null,null,null,null,null,null,null,null,null,null,null,null,null,null,null,null,null,null,null,"20 – фінішний нахлест останнього шару стрічки, мм, "]
[null,null,null,null,null,null,null,null,null,null,null,null,null,null,null,null,null,null,null,null,null,null,null,"KN = 3,14 * (dc + 2* tDЕ + 8…16) – доданок (-ки), який (-і) визначається кількістю шарів стрічки; числове значення приймається 8 – для 2-го шару, 12 – для 3-го шару, 16 – для 4-го шару стрічки "]
[null,null,null,null,null,null,null,null,null,null,null,null,null,null,null,null,null,null,null,null,null,null,null,"Також витрата стрічки може прийматися за таблицями нижче для технічних рішень згідно до Сертифікату відповідності. "]
[null,null,null,null,null,null,null,null,null,null,null,null,null,null,null,null,null,null,null,null,null,null,null,"Якщо трубопровід є неізольованим, tDЕ = 0. "]
[null,null,null,null,null,null,null,null,null,null,null,null,null,null,null,null,null,null,null,null,null,null,null,"Підчас розрахунку витрати обов’язково враховувати кількість шарів стрічки згідно до п. 4.8. шляхом використання необхідної кількості доданків у формулах (1) та (2). "]
[]
[]
[]
[]
[]
[]
[]
[]
[]
[]
[]
[]
[]
[]
[]
[]
[]
[]
[]
[]
[]
[]
[]
[]
[]
[]
[]
[]
[]
[]
[]
[]
[]
[]
[]
[]
[]
[]
[]
[]
[]
[]
[]
[]
[]
[]
[]
[]
[]
[]
[]
[]
[]
[]
[]
[]
[]
[]
[]
[]
[]
[]
[]
[]
[]
[]
[]
[]
[]
[]
[]
[]
[]
[]
[]
[]
[]
[]
[]
[]
[]
[]
[]
[]
[]
[]
[]
[]
[]
[]
[]
[]
[]
[]
[]
[]
[]
[]
[]
[]
[]
[]
[]
[]
[]
[]
[]
[]
[]
[]
[]
[]
[]
[]
[]
[]
[]
[]
[]
[]
[]
[]
[]
[]
[]
[]
[]
[]
[]
[]
[]
[]
[]
[]
[]
[]
[]
[]
[]
[]
[]
[]
[]
[]
[]
[]
[]
[]
[]
[]
[]
[]
[]
[]
[]
[]
[]
[]
[]
[]
[]
[]
[]
[]
[]
[]
[]
[]
[]
[]
[]
[]
[]
[]
[]
[]
[]
[]
[]
[]
[]
[]
[]
[]
[]
[]
[]
[]
[]
[]
[]
[]
[]
[]
[]
[]
[]
[]
[]
[]
[]
[]
[]
[]
[]
[]
[]
[]
[]
[]
[]
[]
[]
[]
[]
[]
[]
[]
[]
[]
[]
[]
[]
[]
[]
[]
[]
[]
[]
[]
[]
[]
[]
[]
[]
[]
[]
[]
[]
[]
[]
[]
[]
[]
[]
[]
[]
[]
[]
[]
[]
[]
[]
[]
[]
[]
[]
[]
[]
[]
[]
[]
[]
[]
[]
[]
[]
[]
[]
[]
[]
[]
[]
[]
[]
[]
[]
[]
[]
[]
[]
[]
[]
[]
[]
[]
[]
[]
[]
[]
[]
[]
[]
[]
[]
[]
[]
[]
[]
[]
[]
[]
[]
[]
[]
[]
[]
[]
[]
[]
[]
[]
[]
[]
[]
[]
[]
[]
[]
[]
[]
[]
[]
[]
[]
[]
[]
[]
[]
[]
[]
[]
[]
[]
[]
[]
[]
[]
[]
[]
[]
[]
[]
[]
[]
[]
[]
[]
[]
[]
[]
[]
[]
[]
[]
[]
[]
[]
[]
[]
[]
[]
[]
[]
[]
[]
[]
[]
[]
[]
[]
[]
[]
[]
[]
[]
[]
[]
[]
[]
[]
[]
[]
[]
[]
[]
[]
[]
[]
[]
[]
[]
[]
[]
[]
[]
[]
[]
[]
[]
[]
[]
[]
[]
[]
[]
[]
[]
[]
[]
[]
[]
[]
[]
[]
[]
[]
[]
[]
[]
[]
[]
[]
[]
[]
[]
[]
[]
[]
[]
[]
[]
[]
[]
[]
[]
[]
[]
[]
[]
[]
[]
[]
[]
[]
[]
[]
[]
[]
[]
[]
[]
[]
[]
[]
[]
[]
[]
[]
[]
[]
[]
[]
[]
[]
[]
[]
[]
[]
[]
[]
[]
[]
[]
[]
[]
[]
[]
[]
[]
[]
[]
[]
[]
[]
[]
[]
[]
[]
[]
[]
[]
[]
[]
[]
[]
[]
[]
[]
[]
[]
[]
[]
[]
[]
[]
[]
[]
[]
[]
[]
[]
[]
[]
[]
[]
[]
[]
[]
[]
[]
[]
[]
[]
[]
[]
[]
[]
[]
[]
[]
[]
[]
[]
[]
[]
[]
[]
[]
[]
[]
[]
[]
[]
[]
[]
[]
[]
[]
[]
[]
[]
[]
[]
[]
[]
[]
[]
[]
[]
[]
[]
[]
[]
[]
[null,null,null,"Общий оборот"]
[]
[]
[]
[]
[]
[]
[]
[]
[]
[]
[]
[]
[]
[]
[]
[]
[]
[]
[]
[]
[]
[]
[]
[]
[]
[]
[]
[]
[]
[]
[]
[]
[]
[]
[]
[]
[]
[]
[]
[]
[]
[]
[]
[]
[]
[]
[]
[]
[]
[]
[]
[]
[]
[]
[]
[]
[]
[]
[]
[]
[]
[]
[]
[]
[]
[]
[]
[]
[]
[]
[]
[]
[]
[]
[]
[]
[]
[]
[]
[]
[]
[]
[]
[]
[]
[]
[]
[]
[]
[]
[]
[]
[]
[]
[]
[]
[]
[]
[]
[]
[]
[]
[]
[]
[]
[]
[]
[]
[]
[]
[]
[]
[]
[]
[]
[]
[]
[]
[]
[]
[]
[]
[]
[]
[]
[]
[]
[]
[]
[]
[]
[]
[]
[]
[]
[]
[]
[]
[]
[]
[]
[]
[]
[]
[]
[]
[]
[]
[]
[]
[]
[]
[]
[]
[]
[]
[]
[]
[]
[]
[]
[]
[]
[]
[]
[]
[]
[]
[]
[]
[]
[]
[]
[]
[]
[]
[]
[]
[]
[]
[]
[]
[]
[]
[]
[]
[]
[]
[]
[]
[]
[]
[]
[]
[]
[]
[]
[]
[]
[]
[]
[]
[]
[]
[]
[]
[]
[]
[]
[]
[]
[]
[]
[]
[]
[]
[]
[]
[]
[]
[]
[]
[]
[]
[]
[]
[]
[]
[]
[]
[]
[]
[]
[]
[]
[]
[]
[]
[]
[]
[]
[]
[]
[]
[]
[]
[]
[]
[]
[]
[]
[]
[]
[]
[]
[]
[]
[]
[]
[]
[]
[]
[]
[]
[]
[]
[]
[]
[]
[]
[]
[]
[]
[]
[]
[]
[]
[]
[]
[]
[]
[]
[]
[]
[]
[]
[]
[]
[]
[]
[]
[]
[]
[]
[]
[]
[]
[]
[]
[]
[]
[]
[]
[]
[]
[]
[]
[]
[]
[]
[]
[]
[]
[]
[]
[]
[]
[]
[]
[]
[]
[]
[]
[]
[]
[]
[]
[]
[]
[]
[]
[]
[]
[]
[]
[]
[]
[]
[]
[]
[]
[]
[]
[]
[]
[]
[]
[]
[]
[]
[]
[]
[]
[]
[]
[]
[]
[]
[]
[]
[]
[]
[]
[]
[]
[]
[]
[]
[]
[]
[]
[]
[]
[]
[]
[]
[]
[]
[]
[]
[]
[]
[]
[]
[]
[]
[]
[]
[]
[]
[]
[]
[]
[]
[]
[]
[]
[]
[]
[]
[]
[]
[]
[]
[]
[]
[]
[]
[]
[]
[]
[]
[]
[]
[]
[]
[]
[]
[]
[]
[]
[]
[]
[]
[]
[]
[]
[]
[]
[]
[]
[]
[]
[]
[]
[]
[]
[]
[]
[]
[]
[]
[]
[]
[]
[]
[]
[]
[]
[]
[]
[]
[]
[]
[]
[]
[]
[]
[]
[]
[]
[]
[]
[]
[]
[]
[]
[]
[]
[]
[]
[]
[]
[]
[]
[]
[]
[]
[]
[]
[]
[]
[]
[]
[]
[]
[]
[]
[]
[]
[]
[]
[]
[]
[]
[]
[]
[]
[]
[]
[]
[]
[]
[]
[]
[]
[]
[]
[]
[]
[]
[]
[]
[]
[]
[]
[]
[]
[]
[]
[]
[]
[]
[]
[]
[]
[]
[]
[]
[]
[]
[]
[]
[]
[]
[]
[]
[]
[]
[]
[]
[]
[]
[]
[]
[]
[]
[]
[]
[]
[]
[]
[]
[]
[]
[]
[]
[]
[]
[]
[]
[]
[]
[]
[]
[]
[]
[]
[]
[]
[]
[]
[]
[]
[]
[]
[]
[]
[]
[]
[]
[]
[]
[]
[]
[]
[]
[]
[]
[]
[]
[]
[]
[]
[]
[]
[]
[]
[]
[]
[]
[]
[]
[]
[]
[]
[]
[]
[]
[]
[]
[]
[]
[]
[]
[]
[]
[]
[]
[]
[]
[]
[]
[]
[]
[]
[]
[]
[]
[]
[]
[]
[]
[]
[]
[]
[]
[]
[]
[]
[]
[]
[]
[]
[]
[]
[]
[]
[]
[]
[]
[]
[]
[]
[]
[]
[]
[]
[]
[]
[]
[]
[]
[]
[]
[]
[]
[]
[]
[]
[]
[]
[]
[]
[]
[]
[]
[]
[]
[]
[]
[]
[]
[]
[]
[]
[]
[]
[]
[]
[]
[]
[]
[]
[]
[]
[]
[]
[]
[]
[]
[]
[]
[]
[]
[]
[]
[]
[]
[]
[]
[]
[]
[]
[]
[]
[]
[]
[]
[]
[]
[]
[]
[]
[]
[]
[]
[]
[]
[]
[]
[]
[]
[]
[]
[]
[]
[]
[]
[]
[]
[]
[]
[]
[]
[]
[]
[]
[]
[]
[]
[]
[]
[]
[]
[]
[]
[]
[]
[]
[]
[]
[]
[]
[]
[]
[]
[]
[]
[]
[]
[]
[]
[]
[]
[]
[]
[]
[]
[]
[]
[]
[]
[]
[]
[]
[]
[]
[]
[]
[]
[]
[]
[]
[]
[]
[]
[]
[]
[]
[]
[]
[]
[]
[]
[]
[]
[]
[]
[]
[]
[]
[]
[]
[]
[]
[]
[]
[]
[]
[]
[]
[]
[]
[]
[]
[]
[]
[]
[]
[]
[]
[]
[]
[]
[]
[]
[]
[]
[]
[]
[]
[]
[]
[]
[]
[]
[]
[]
[]
[]
[]
[]
[]
[]
[]
[]
[]
[]
[]
[]
[]
[]
[]
[]
[]
[]
[]
[]
[]
[]
[]
[]
[]
[]
[]
[]
[]
[]
[]
[]
[]
[]
[]
[]
[]
[]
[]
[]
[]
[]
[]
[]
[]
[]
[]
[]
[]
[]
[]
[]
[]
[]
[]
[]
[]
[]
[]
[]
[]
[]
[]
[]
[]
[]
[]
[]
[]
[]
[]
[]
[]
[]
[]
[]
[]
[]
[]
[]
[]
[]
[]
[]
[]
[]
[]
[]
[]
[]
[]
[]
[]
[]
[]
[]
[]
[]
[]
[]
[]
[]
[]
[]
[]
[]
[]
[]
[]
[]
[]
[]
[]
[]
[]
[]
[]
[]
[]
[]
[]
[]
[]
[]
[]
[]
[]
[]
[]
[]
[]
[]
[]
[]
[]
[]
[]
[]
[]
[]
[]
[]
[]
[]
[]
[]
[]
[]
[]
[]
[]
[]
[]
[]
[]
[]
[]
[]
[]
[]
[]
[]
[]
[]
[]
[]
[]
[]
[]
[]
[]
[]
[]
[]
[]
[]
[]
[]
[]
[]
[]
[]
[]
[]
[]
[]
[]
[]
[]
[]
[]
[]
[]
[]
[]
[]
[]
[]
[]
[]
[]
[]
[]
[]
[]
[]
[]
[]
[]
[]
[]
[]
[]
[]
[]
[]
[]
[]
[]
[]
[]
[]
[]
[]
[]
[]
[]
[]
[]
[]
[]
[]
[]
[]
[]
[]
[]
[]
[]
[]
[]
[]
[]
[]
[]
[]
[]
[]
[]
[]
[]
[]
[]
[]
[]
[]
[]
[]
[]
[]
[]
[]
[]
[]
[]
[]
[]
[]
[]
[]
[]
[]
[]
[]
[]
[]
[]
[]
[]
[]
[]
[]
[]
[]
[]
[]
[]
[]
[]
[]
[]
[]
[]
[]
[]
[]
[]
[]
[]
[]
[]
[]
[]
[]
[]
[]
[]
[]
[]
[]
[]
[]
[]
[]
[]
[]
[]
[]
[]
[]
[]
[]
[]
[]
[]
[]
[]
[]
[]
[]
[]
[]
[]
[]
[]
[]
[]
[]
[]
[]
[]
[]
[]
[]
[]
[]
[]
[]
[]
[]
[]
[]
[]
[]
[]
[]
[]
[]
[]
[]
[]
[]
[]
[]
[]
[]
[]
[]
[]
[]
[]
[]
[]
[]
[]
[]
[]
[]
[]
[]
[]
[]
[]
[]
[]
[]
[]
[]
[]
[]
[]
[]
[]
[]
[]
[]
[]
[]
[]
[]
[]
[]
[]
[]
[]
[]
[]
[]
[]
[]
[]
[]
[]
[]
[]
[]
[]
[]
[]
[]
[]
[]
[]
[]
[]
[]
[]
[]
[]
[]
[]
[]
[]
[]
[]
[]
[]
[]
[]
[]
[]
[]
[]
[]
[]
[]
[]
[]
[]
[]
[]
[]
[]
[]
[]
[]
[]
[]
[]
[]
[]
[]
[]
[]
[]
[]
[]
[]
[]
[]
[]
[]
[]
[]
[]
[]
[]
[]
[]
[]
[]
[]
[]
[]
[]
[]
[]
[]
[]
[]
[]
[]
[]
[]
[]
[]
[]
[]
[]
[]
[]
[]
[]
[]
[]
[]
[]
[]
[]
[]
[]
[]
[]
[]
[]
[]
[]
[]
[]
[]
[]
[]
[]
[]
[]
[]
[]
[]
[]
[]
[]
[]
[]
[]
[]
[]
[]
[]
[]
[]
[]
[]
[]
[]
[]
[]
[]
[]
[]
[]
[]
[]
[]
[]
[]
[]
[]
[]
[]
[]
[]
[]
[]
[]
[]
[]
[]
[]
[]
[]
[]
[]
[]
[]
[]
[]
[]
[]
[]
[]
[]
[]
[]
[]
[]
[]
[]
[]
[]
[]
[]
[]
[]
[]
[]
[]
[]
[]
[]
[]
[]
[]
[]
[]
[]
[]
[]
[]
[]
[]
[]
[]
[]
[]
[]
[]
[]
[]
[]
[]
[]
[]
[]
[]
[]
[]
[]
[]
[]
[]
[]
[]
[]
[]
[]
[]
[]
[]
[]
[]
[]
[]
[]
[]
[]
[]
[]
[]
[]
[]
[]
[]
[]
[]
[]
[]
[]
[]
[]
[]
[]
[]
[]
[]
[]
[]
[]
[]
[]
[]
[]
[]
[]
[]
[]
[]
[]
[]
[]
[]
[]
[]
[]
[]
[]
[]
[]
[]
[]
[]
[]
[]
[]
[]
[]
[]
[]
[]
[]
[]
[]
[]
[]
[]
[]
[]
[]
[]
[]
[]
[]
[]
[]
[]
[]
[]
[]
[]
[]
[]
[]
[]
[]
[]
[]
[]
[]
[]
[]
[]
[]
[]
[]
[]
[]
[]
[]
[]
[]
[]
[]
[]
[]
[]
[]
[]
[]
[]
[]
[]
[]
[]
[]
[]
[]
[]
[]
[]
[]
[]
[]
[]
[]
[]
[]
[]
[]
[]
[]
[]
[]
[]
[]
[]
[]
[]
[]
[]
[]
[]
[]
[]
[]
[]
[]
[]
[]
[]
[]
[]
[]
[]
[]
[]
[]
[]
[]
[]
[]
[]
[]
[]
[]
[]
[]
[]
[]
[]
[]
[]
[]
[]
[]
[]
[]
[]
[]
[]
[]
[]
[]
[]
[]
[]
[]
[]
[]
[]
[]
[]
[]
[]
[]
[]
[]
[]
[]
[]
[]
[]
[]
[]
[]
[]
[]
[]
[]
[]
[]
[]
[]
[]
[]
[]
[]
[]
[]
[]
[]
[]
[]
[]
[]
[]
[]
[]
[]
[]
[]
[]
[]
[]
[]
[]
[]
[]
[]
[]
[]
[]
[]
[]
[]
[]
[]
[]
[]
[]
[]
[]
[]
[]
[]
[]
[]
[]
[]
[]
[]
[]
[]
[]
[]
[]
[]
[]
[]
[]
[]
[]
[]
[]
[]
[]
[]
[]
[]
[]
[]
[]
[]
[]
[]
[]
[]
[]
[]
[]
[]
[]
[]
[]
[]
[]
[]
[]
[]
[]
[]
[]
[]
[]
[]
[]
[]
[]
[]
[]
[]
[]
[]
[]
[]
[]
[]
[]
[]
[]
[]
[]
[]
[]
[]
[]
[]
[]
[]
[]
[]
[]
[]
[]
[]
[]
[]
[]
[]
[]
[]
[]
[]
[]
[]
[]
[]
[]
[]
[]
[]
[]
[]
[]
[]
[]
[]
[]
[]
[]
[]
[]
[]
[]
[]
[]
[]
[]
[]
[]
[]
[]
[]
[]
[]
[]
[]
[]
[]
[]
[]
[]
[]
[]
[]
[]
[]
[]
[]
[]
[]
[]
[]
[]
[]
[]
[]
[]
[]
[]
[]
[]
[]
[]
[]
[]
[]
[]
[]
[]
[]
[]
[]
[]
[]
[]
[]
[]
[]
[]
[]
[]
[]
[]
[]
[]
[]
[]
[]
[]
[]
[]
[]
[]
[]
[]
[]
[]
[]
[]
[]
[]
[]
[]
[]
[]
[]
[]
[]
[]
[]
[]
[]
[]
[]
[]
[]
[]
[]
[]
[]
[]
[]
[]
[]
[]
[]
[]
[]
[]
[]
[]
[]
[]
[]
[]
[]
[]
[]
[]
[]
[]
[]
[]
[]
[]
[]
[]
[]
[]
[]
[]
[]
[]
[]
[]
[]
[]
[]
[]
[]
[]
[]
[]
[]
[]
[]
[]
[]
[]
[]
[]
[]
[]
[]
[]
[]
[]
[]
[]
[]
[]
[]
[]
[]
[]
[]
[]
[]
[]
[]
[]
[]
[]
[]
[]
[]
[]
[]
[]
[]
[]
[]
[]
[]
[]
[]
[]
[]
[]
[]
[]
[]
[]
[]
[]
[]
[]
[]
[]
[]
[]
[]
[]
[]
[]
[]
[]
[]
[]
[]
[]
[]
[]
[]
[]
[]
[]
[]
[]
[]
[]
[]
[]
[]
[]
[]
[]
[]
[]
[]
[]
[]
[]
[]
[]
[]
[]
[]
[]
[]
[]
[]
[]
[]
[]
[]
[]
[]
[]
[]
[]
[]
[]
[]
[]
[]
[]
[]
[]
[]
[]
[]
[]
[]
[]
[]
[]
[]
[]
[]
[]
[]
[]
[]
[]
[]
[]
[]
[]
[]
[]
[]
[]
[]
[]
[]
[]
[]
[]
[]
[]
[]
[]
[]
[]
[]
[]
[]
[]
[]
[]
[]
[]
[]
[]
[]
[]
[]
[]
[]
[]
[]
[]
[]
[]
[]
[]
[]
[]
[]
[]
[]
[]
[]
[]
[]
[]
[]
[]
[]
[]
[]
[]
[]
[]
[]
[]
[]
[]
[]
[]
[]
[]
[]
[]
[]
[]
[]
[]
[]
[]
[]
[]
[]
[]
[]
[]
[]
[]
[]
[]
[]
[]
[]
[]
[]
[]
[]
[]
[]
[]
[]
[]
[]
[]
[]
[]
[]
[]
[]
[]
[]
[]
[]
[]
[]
[]
[]
[]
[]
[]
[]
[]
[]
[]
[]
[]
[]
[]
[]
[]
[]
[]
[]
[]
[]
[]
[]
[]
[]
[]
[]
[]
[]
[]
[]
[]
[]
[]
[]
[]
[]
[]
[]
[]
[]
[]
[]
[]
[]
[]
[]
[]
[]
[]
[]
[]
[]
[]
[]
[]
[]
[]
[]
[]
[]
[]
[]
[]
[]
[]
[]
[]
[]
[]
[]
[]
[]
[]
[]
[]
[]
[]
[]
[]
[]
[]
[]
[]
[]
[]
[]
[]
[]
[]
[]
[]
[]
[]
[]
[]
[]
[]
[]
[]
[]
[]
[]
[]
[]
[]
[]
[]
[]
[]
[]
[]
[]
[]
[]
[]
[]
[]
[]
[]
[]
[]
[]
[]
[]
[]
[]
[]
[]
[]
[]
[]
[]
[]
[]
[]
[]
[]
[]
[]
[]
[]
[]
[]
[]
[]
[]
[]
[]
[]
[]
[]
[]
[]
[]
[]
[]
[]
[]
[]
[]
[]
[]
[]
[]
[]
[]
[]
[]
[]
[]
[]
[]
[]
[]
[]
[]
[]
[]
[]
[]
[]
[]
[]
[]
[]
[]
[]
[]
[]
[]
[]
[]
[]
[]
[]
[]
[]
[]
[]
[]
[]
[]
[]
[]
[]
[]
[]
[]
[]
[]
[]
[]
[]
[]
[]
[]
[]
[]
[]
[]
[]
[]
[]
[]
[]
[]
[]
[]
[]
[]
[]
[]
[]
[]
[]
[]
[]
[]
[]
[]
[]
[]
[]
[]
[]
[]
[]
[]
[]
[]
[]
[]
[]
[]
[]
[]
[]
[]
[]
[]
[]
[]
[]
[]
[]
[]
[]
[]
[]
[]
[]
[]
[]
[]
[]
[]
[]
[]
[]
[]
[]
[]
[]
[]
[]
[]
[]
[]
[]
[]
[]
[]
[]
[]
[]
[]
[]
[]
[]
[]
[]
[]
[]
[]
[]
[]
[]
[]
[]
[]
[]
[]
[]
[]
[]
[]
[]
[]
[]
[]
[]
[]
[]
[]
[]
[]
[]
[]
[]
[]
[]
[]
[]
[]
[]
[]
[]
[]
[]
[]
[]
[]
[]
[]
[]
[]
[]
[]
[]
[]
[]
[]
[]
[]
[]
[]
[]
[]
[]
[]
[]
[]
[]
[]
[]
[]
[]
[]
[]
[]
[]
[]
[]
[]
[]
[]
[]
[]
[]
[]
[]
[]
[]
[]
[]
[]
[]
[]
[]
[]
[]
[]
[]
[]
[]
[]
[]
[]
[]
[]
[]
[]
[]
[]
[]
[]
[]
[]
[]
[]
[]
[]
[]
[]
[]
[]
[]
[]
[]
[]
[]
[]
[]
[]
[]
[]
[]
[]
[]
[]
[]
[]
[]
[]
[]
[]
[]
[]
[]
[]
[]
[]
[]
[]
[]
[]
[]
[]
[]
[]
[]
[]
[]
[]
[]
[]
[]
[]
[]
[]
[]
[]
[]
[]
[]
[]
[]
[]
[]
[]
[]
[]
[]
[]
[]
[]
[]
[]
[]
[]
[]
[]
[]
[]
[]
[]
[]
[]
[]
[]
[]
[]
[]
[]
[]
[]
[]
[]
[]
[]
[]
[]
[]
[]
[]
[]
[]
[]
[]
[]
[]
[]
[]
[]
[]
[]
[]
[]
[]
[]
[]
[]
[]
[]
[]
[]
[]
[]
[]
[]
[]
[]
[]
[]
[]
[]
[]
[]
[]
[]
[]
[]
[]
[]
[]
[]
[]
[]
[]
[]
[]
[]
[]
[]
[]
[]
[]
[]
[]
[]
[]
[]
[]
[]
[]
[]
[]
[]
[]
[]
[]
[]
[]
[]
[]
[]
[]
[]
[]
[]
[]
[]
[]
[]
[]
[]
[]
[]
[]
[]
[]
[]
[]
[]
[]
[]
[]
[]
[]
[]
[]
[]
[]
[]
[]
[]
[]
[]
[]
[]
[]
[]
[]
[]
[]
[]
[]
[]
[]
[]
[]
[]
[]
[]
[]
[]
[]
[]
[]
[]
[]
[]
[]
[]
[]
[]
[]
[]
[]
[]
[]
[]
[]
[]
[]
[]
[]
[]
[]
[]
[]
[]
[]
[]
[]
[]
[]
[]
[]
[]
[]
[]
[]
[]
[]
[]
[]
[]
[]
[]
[]
[]
[]
[]
[]
[]
[]
[]
[]
[]
[]
[]
[]
[]
[]
[]
[]
[]
[]
[]
[]
[]
[]
[]
[]
[]
[]
[]
[]
[]
[]
[]
[]
[]
[]
[]
[]
[]
[]
[]
[]
[]
[]
[]
[]
[]
[]
[]
[]
[]
[]
[]
[]
[]
[]
[]
[]
[]
[]
[]
[]
[]
[]
[]
[]
[]
[]
[]
[]
[]
[]
[]
[]
[]
[]
[]
[]
[]
[]
[]
[]
[]
[]
[]
[]
[]
[]
[]
[]
[]
[]
[]
[]
[]
[]
[]
[]
[]
[]
[]
[]
[]
[]
[]
[]
[]
[]
[]
[]
[]
[]
[]
[]
[]
[]
[]
[]
[]
[]
[]
[]
[]
[]
[]
[]
[]
[]
[]
[]
[]
[]
[]
[]
[]
[]
[]
[]
[]
[]
[]
[]
[]
[]
[]
[]
[]
[]
[]
[]
[]
[]
[]
[]
[]
[]
[]
[]
[]
[]
[]
[]
[]
[]
[]
[]
[]
[]
[]
[]
[]
[]
[]
[]
[]
[]
[]
[]
[]
[]
[]
[]
[]
[]
[]
[]
[]
[]
[]
[]
[]
[]
[]
[]
[]
[]
[]
[]
[]
[]
[]
[]
[]
[]
[]
[]
[]
[]
[]
[]
[]
[]
[]
[]
[]
[]
[]
[]
[]
[]
[]
[]
[]
[]
[]
[]
[]
[]
[]
[]
[]
[]
[]
[]
[]
[]
[]
[]
[]
[]
[]
[]
[]
[]
[]
[]
[]
[]
[]
[]
[]
[]
[]
[]
[]
[]
[]
[]
[]
[]
[]
[]
[]
[]
[]
[]
[]
[]
[]
[]
[]
[]
[]
[]
[]
[]
[]
[]
[]
[]
[]
[]
[]
[]
[]
[]
[]
[]
[]
[]
[]
[]
[]
[]
[]
[]
[]
[]
[]
[]
[]
[]
[]
[]
[]
[]
[]
[]
[]
[]
[]
[]
[]
[]
[]
[]
[]
[]
[]
[]
[]
[]
[]
[]
[]
[]
[]
[]
[]
[]
[]
[]
[]
[]
[]
[]
[]
[]
[]
[]
[]
[]
[]
[]
[]
[]
[]
[]
[]
[]
[]
[]
[]
[]
[]
[]
[]
[]
[]
[]
[]
[]
[]
[]
[]
[]
[]
[]
[]
[]
[]
[]
[]
[]
[]
[]
[]
[]
[]
[]
[]
[]
[]
[]
[]
[]
[]
[]
[]
[]
[]
[]
[]
[]
[]
[]
[]
[]
[]
[]
[]
[]
[]
[]
[]
[]
[]
[]
[]
[]
[]
[]
[]
[]
[]
[]
[]
[]
[]
[]
[]
[]
[]
[]
[]
[]
[]
[]
[]
[]
[]
[]
[]
[]
[]
[]
[]
[]
[]
[]
[]
[]
[]
[]
[]
[]
[]
[]
[]
[]
[]
[]
[]
[]
[]
[]
[]
[]
[]
[]
[]
[]
[]
[]
[]
[]
[]
[]
[]
[]
[]
[]
[]
[]
[]
[]
[]
[]
[]
[]
[]
[]
[]
[]
[]
[]
[]
[]
[]
[]
[]
[]
[]
[]
[]
[]
[]
[]
[]
[]
[]
[]
[]
[]
[]
[]
[]
[]
[]
[]
[]
[]
[]
[]
[]
[]
[]
[]
[]
[]
[]
[]
[]
[]
[]
[]
[]
[]
[]
[]
[]
[]
[]
[]
[]
[]
[]
[]
[]
[]
[]
[]
[]
[]
[]
[]
[]
[]
[]
[]
[]
[]
[]
[]
[]
[]
[]
[]
[]
[]
[]
[]
[]
[]
[]
[]
[]
[]
[]
[]
[]
[]
[]
[]
[]
[]
[]
[]
[]
[]
[]
[]
[]
[]
[]
[]
[]
[]
[]
[]
[]
[]
[]
[]
[]
[]
[]
[]
[]
[]
[]
[]
[]
[]
[]
[]
[]
[]
[]
[]
[]
[]
[]
[]
[]
[]
[]
[]
[]
[]
[]
[]
[]
[]
[]
[]
[]
[]
[]
[]
[]
[]
[]
[]
[]
[]
[]
[]
[]
[]
[]
[]
[]
[]
[]
[]
[]
[]
[]
[]
[]
[]
[]
[]
[]
[]
[]
[]
[]
[]
[]
[]
[]
[]
[]
[]
[]
[]
[]
[]
[]
[]
[]
[]
[]
[]
[]
[]
[]
[]
[]
[]
[]
[]
[]
[]
[]
[]
[]
[]
[]
[]
[]
[]
[]
[]
[]
[]
[]
[]
[]
[]
[]
[]
[]
[]
[]
[]
[]
[]
[]
[]
[]
[]
[]
[]
[]
[]
[]
[]
[]
[]
[]
[]
[]
[]
[]
[]
[]
[]
[]
[]
[]
[]
[]
[]
[]
[]
[]
[]
[]
[]
[]
[]
[]
[]
[]
[]
[]
[]
[]
[]
[]
[]
[]
[]
[]
[]
[]
[]
[]
[]
[]
[]
[]
[]
[]
[]
[]
[]
[]
[]
[]
[]
[]
[]
[]
[]
[]
[]
[]
[]
[]
[]
[]
[]
[]
[]
[]
[]
[]
[]
[]
[]
[]
[]
[]
[]
[]
[]
[]
[]
[]
[]
[]
[]
[]
[]
[]
[]
[]
[]
[]
[]
[]
[]
[]
[]
[]
[]
[]
[]
[]
[]
[]
[]
[]
[]
[]
[]
[]
[]
[]
[]
[]
[]
[]
[]
[]
[]
[]
[]
[]
[]
[]
[]
[]
[]
[]
[]
[]
[]
[]
[]
[]
[]
[]
[]
[]
[]
[]
[]
[]
[]
[]
[]
[]
[]
[]
[]
[]
[]
[]
[]
[]
[]
[]
[]
[]
[]
[]
[]
[]
[]
[]
[]
[]
[]
[]
[]
[]
[]
[]
[]
[]
[]
[]
[]
[]
[]
[]
[]
[]
[]
[]
[]
[]
[]
[]
[]
[]
[]
[]
[]
[]
[]
[]
[]
[]
[]
[]
[]
[]
[]
[]
[]
[]
[]
[]
[]
[]
[]
[]
[]
[]
[]
[]
[]
[]
[]
[]
[]
[]
[]
[]
[]
[]
[]
[]
[]
[]
[]
[]
[]
[]
[]
[]
[]
[]
[]
[]
[]
[]
[]
[]
[]
[]
[]
[]
[]
[]
[null,null,null,null,null,null,null,null,null,null,null,null,null,null,null,null,null,null,null,null,null,null,"S1=0"]

{"sheet":"СР601S (СР606) герметик + шов","index":9,"n_rows":44,"n_cols":24,"rows_kept":44,"cut":false,"hidden":true,"merged":[[1,4,3,8],[15,0,15,2],[13,0,13,2],[1,23,3,29]]}
[null,"Увага: цей файл не є офіційним програмним забезпеченням Hilti",null,null,null,null,null,null,null,null,null,null,null,null,null,null,null,null,null,null,false,false]
[null,null,null,null,"Розрахунок витрат герметику СР601S або СР606 для облаштування швів",null,null,null,null,null,null,null,null,null,"Вспомогательные ячейки : ",null,null,null,null,null,"2 стор",0.1,null,"Розрахунок витрат"]
[]
[]
[]
[null,null,"Ширина шва \"w\" :   ",100," мм",null,null,"Стиснення мінвати : ",40,"%",null,"Глубина шва : ",{"$f":"D20","v":20},"мм"]
[]
[null,null,"Довжина шва \"L\" : ",1000," мм",null,null,null,null,null,null,"з однієї сторони"]
[]
[null,null,"Товщина конструкції \"tE\" :  ",10000," мм",null,null,"Загальні витрати герметику : ",{"$f":"ROUNDUP(M16,0)*D12","v":2000}," мл",null," V = ",{"$f":"(M6*D6*D8)*10^- 3","v":2000},"ml"]
[]
[null,null,"Кількість швів : ",1,"шт.",null,null,"Загальні витрати мін. вати : ",{"$f":"M23*10^-6*D12","v":1.6633333333333331}," м³",null,"з двох сторін?"]
[null,null,null,null,null,null,null,null,null,null,null," V = ",{"$f":"IF(U1,M10*2,M10)","v":2000},"ml"]
["Вартість герметику 1шт. ",null,null,280,"грн. с НДС"]
[null,null,null,null,null,null,null,null,null,null,null,"+10% ?"]
["Вартість мін. вати за м³. ",null,null,550,"грн. с НДС",null,null,null,null,null,null," V = ",{"$f":"IF(V1,M13*1.1,M13)","v":2000},"ml"]
[]
[null,null,null,null,null,null,null,null,null,null,null,"обєм 1 шва",{"$f":"D6*D8*D10*10^-3","v":1000000},"ml",null,null,null,null,null,null,null,null,null,"1.    Розрахунок витрат матеріалів."]
[null,null,null,null,null,null,null,null,null,null,null,null,null,null,null,null,null,null,null,null,null,null,null,"3.1. Теоретична витрата (V, мл) протипожежного акрилового герметику Hilti CFS-S ACR (CP 606) на один шов (щілину) з двостороннім нанесенням розраховується за формулою: "]
[null,null,"Товщина герметику \"tA\" :   ",20," мм",null,null,null,null,null,null,"обєм мінвати після стискання",null,null,null,null,null,null,null,null,null,null,null,"                             V = (2 * tA * W * L) * 10 - 3,                                                                                                (1)"]
[null,"(Типова глибина шва складає 6-10 мм в залежності від застосування)",null,null,null,null,null,null,null,null,null,null,{"$f":"M18-M16","v":998000},"ml",null,null,null,null,null,null,null,null,null,"де tA – глибина заповнення шву (щілини), мм;"]
[null,null,null,null,null,null,null,null,null,null,null,"обєм мінвати до стискання",null,null,null,null,null,null,null,null,null,null,null,"W – ширина шву (щілини), мм;"]
[null,null,null,null,null,null,null,null,null,null,null,null,{"$f":"M21/(100-I6)*100","v":1663333.3333333333},"ml",null,null,null,null,null,null,null,null,null,"L – довжина шву (щілини), мм."]
[null,null,null,null,null,null,null,null,null,null,null,null,null,null,null,null,null,null,null,null,null,null,null,"За необхідності при розрахунку кількості герметику можна застосовувати коефіцієнт запасу."]
[null,null,null,null,null,null,null,null,null,null,null,null,null,null,null,null,null,null,null,null,null,null,null,"Для розрахунку кількості тубів герметику необхідно розділити теоретичну витрату на 310 та прийняти найближче більше число."]
[null,null,null,null,null,null,null,null,null,null,null,null,null,null,null,null,null,null,null,null,null,null,null,"Кількість негорючої мінеральної вати для заповнення швів (щілин) приймати згідно їх геометричних розмірів, глибини заповнення та коефіцієнту компресії (стискання) згідно Розділу 5 даного Регламенту."]
[]
[null,null,null,null,null,null,null,"Загалом необхідно герметику (капсул 310 мл): ",{"$f":"ROUNDUP(I10/310,0)","v":7},"шт."]
[]
[null,null,null,null,null,null,null,"Загальна вартість рішення : ",{"$f":"I28*D14+I12*D16","v":2874.833333333333},"грн. з ПДВ"]
[]
["* Розрахунок приблизний. Реальні витрати залежать від умов монтажу."]
[]
[]
[]
[]
[]
[]
[]
[]
[]
[]
[null,"У разі виникнення питань, ласкаво просимо звязатись "]
[null,"з регіональним представником Hilti чи клієнтською службою за тел. 0443905566"]

{"sheet":"Герметик-спрей CFS-SP WB","index":10,"n_rows":21,"n_cols":25,"rows_kept":21,"cut":false,"hidden":true,"merged":[[14,0,14,2],[2,3,4,8]]}
[null,"Увага: цей файл не є офіційним програмним забезпеченням Hilti",null,null,null,null,null,null,null,null,null,null,null,null,null,null,null,null,null,null,null,"10% ?"]
[null,null,null,null,null,null,null,null,null,null,null,null,null,null,null,null,null,null,null,null,false,false]
[null,null,null,"Розрахунок витрат герметику спрея                                   СFS - SP WB для захисту шву",null,null,null,null,null,null,null,null,null,null,null,null,null,null,null,null,null,null,null,"1.    Розрахунок витрат матеріалів."]
[null,null,null,null,null,null,null,null,null,null,null,null,null,null,null,null,null,null,null,null,null,null,null,"3.1. Теоретична витрата (V, л) протипожежного герметик-спрею Hilti CFS-SP WB  на один шов (щілину) з одностороннім нанесенням розраховується за формулою або орієнтовно приймається за таблицею нижче: "]
[null,null,null,null,null,null,null,null,null,null,null,null,null,"                            V = (tA * (W + 30) * L) * 10 - 6,                                                                                (1)",null,null,null,null,null,null,null,null,null,"                            V = (tA * (W + 30) * L) * 10 - 6,                                                                                (1)"]
[null,null,null,null,null,null,"Товщина мокрого ",null,null,null,null,null,null,"V=",{"$f":"(I7*(D7+30)*D9*1000)*10^-6","v":1},"liters",null,null,null,null,null,null,null,"де tA ~ 3 - 5 мм – товщина мокрого шару герметику для утворення сухого шару 2 мм, мм;"]
[null,null,"Ширина шву \"w\" : ",70," мм",null,null,"шару герметика \"tA\" :    ",10," мм",null,null,null,null,null,null,null,null,null,null,null,null,null,"W + 30 – ширина шву (щілини) з двома нахлестами по 15 мм мінімум, мм;"]
[null,null,null,null,null,null,null,null,null,null,null,null,null,"з запасом 10% ?",null,null,null,null,null,null,null,null,null,"L – довжина шву (щілини), мм."]
[null,null,"Довжина шву \"L\" : ",1," м",null,null,"Загальний обсяг герметик-спрея : ",{"$f":"O9","v":1}," л",null,null,null,"V=",{"$f":"IF(V2,O6*1.1,O6)","v":1},"liters",null,null,null,null,null,null,null,"За необхідності при розрахунку кількості герметику можна застосовувати коефіцієнт запасу."]
[null,null,null,null,null,null,null,null,{"$f":"ROUNDUP(I9/18.9,0)","v":1},"ведер",null,null,null,null,null,null,null,null,null,null,null,null,null,"Для розрахунку кількості ємностей герметику необхідно розділити теоретичну витрату на 18,9 та прийняти найближче більше число."]
[null,null,"Товщина конструкції : ",100," мм",null,null,null,null,null,null,null,null,null,null,null,null,null,null,null,null,null,null,"Кількість негорючої мінеральної вати для заповнення швів (щілин) приймати згідно їх геометричних розмірів, глибини заповнення та коефіцієнту компресії (стискання) згідно Розділу 5 даного Регламенту."]
[null,null,"(наприклад, перекриття)",null,null,null,null,"Стиснення мінвати : ",50,"%",null,null,null,"Обєм мінвати після стиснення",null,null,null,null,null,null,null,null,null,"Ширина ущільнення, мм","Довжина ущільнення в м.п. на 1 ємність 19 л"]
[null,null,"Вартість 1 відра (з ПДВ) :",11000," грн. з ПДВ",null,null,"Загальні витрати мін. ваты : ",{"$f":"O16","v":1.3999999999999999E-2},"м³",null,null,null,null,{"$f":"D7*D9*D11*10^-6","v":6.9999999999999993E-3},"куб. м.",null,null,null,null,null,null,null,6,150]
[null,null,null,null,null,null,null,null,null,null,null,null,null,null,null,null,null,null,null,null,null,null,null,10,130]
["Ціна мін. вати за м³ (з ПДВ) : ",null,null,350," грн. з ПДВ",null,null,null,null,null,null,null,"обєм мінвати до стискання",null,null,null,null,null,null,null,null,null,null,20,110]
[null,null,null,null,null,null,null,null,null,null,null,null,null,null,{"$f":"O13/(100-I12)*100","v":1.3999999999999999E-2},"куб. м.",null,null,null,null,null,null,null,50,65]
[null,null,null,null,null,null,null,null,null,null,null,null,null,null,null,null,null,null,null,null,null,null,null,100,40]
[null,null,null,null,null,null,null,"Загальна вартість рішення : ",{"$f":"D13*I10+D15*I13","v":11004.9},"грн.",null,null,null,null,null,null,null,null,null,null,null,null,null,150,30]
[null,"* Розрахунок приблизний. Фактичні витрати залежать від умов монтажу.",null,null,null,null,null,null,null,null,null,null,null,null,null,null,null,null,null,null,null,null,null,200,20]
[null,"* Розрахунок виконання з урахуванням 15 мм нахлесту на будівельні конструкці з обох боків шву."]
[null,"*** Товщину мокрого шару герметику призначити виходячі з вимог до межі вогнестійкості"]

{"sheet":"Герметик-спрей CFS-SP SIL","index":11,"n_rows":25,"n_cols":22,"rows_kept":25,"cut":false,"hidden":true,"merged":[[2,4,4,8],[14,0,14,2]]}
[null,"Увага: цей файл не є офіційним програмним забезпеченням Hilti"]
[null,null,null,null,null,null,null,null,null,null,null,null,null,null,null,null,null,null,null,null,false,true]
[null,null,null,null,"Расчет расходов герметик спрея          СFS - SP SIL для защиты шва",null,null,null,null,null,null,null,null,null,"Вспомогательные ячейки : "]
[]
[]
[null,null,null,null,null,null,null,null,null,null,null,null,null,null,"Объём шва м3 : ",{"$f":"(D7+25)/1000*D9*0.002","v":1.4999999999999999E-2},"обьем шва (+10%):",null,{"$f":"IF(V2=TRUE, P6*1.1, P6)","v":1.6500000000000001E-2}]
[null,null,"Ширина шва : ",50," мм",null,null,null,null,null,null,null,null,null,"обьем герметика в л : ",{"$f":"S6*1000","v":16.5}]
[null,null,null,1]
[null,null,"Длина шва : ",100," м",null,null,"Общий объем герметик-спрея : ",{"$f":"ROUNDUP(P7,1)","v":16.5}," л",null,null,null,null,"объём ведра : ",19]
[]
[null,null,"Глубина шва : ",200," мм"]
[]
[null,null,"Цена 1 ведра (с НДС) :",11000," грн. c НДС",null,null,"Общий расход мин. ваты : ",{"$f":"P22/1000000000","v":1.3},"м³",null,null,null,null,"объем всех швов : ",{"$f":"P7*#REF!","v":{"$error":"#REF!"}}]
[]
["Цена мин. ваты за м³(с НДС) : ",null,null,350," грн. c НДС",null,null,null,null,null,{"$f":"25.5/1.28","v":19.921875}]
[]
[]
[null,null,null,null,null,null,null,"Общая стоимость решения : ",{"$f":"I9*(D13/20)+I13*D15","v":9530},"грн."]
[null,"* Расчет приблизительный. Фактический расход зависит от процесса монтажа.",null,null,null,null,null,null,null,null,null,null,null,null,"Необходимо герметика (туб): ",{"$f":"ROUNDUP(P7/P9,0)","v":1}]
[null,"\n\n\n\n** Расчет указаны с учетом нахлеста по 15мм на каждую сторону шва "]
[null,"*** Расчет приведен для толщины влажного слоя герметик спрея 3мм ,"]
[null,"        образующий сухой слой толщиной 1,5 мм.",null,null,null,null,null,null,null,null,null,null,null,null,"Объем мин ваты :",{"$f":"D7*D9*1000*D11*1.3","v":1300000000},{"$f":"D7*D11*(D9/1000)","v":1000}]
[]
[]
[null,null,null,null,null,null,null,null,null,null,null,null,null,null,null,{"$f":"IF((D7/2)<7,6,ROUNDUP(D7/2,0))","v":25}]

{"sheet":"СP611А універсальна проходка","index":12,"n_rows":39,"n_cols":20,"rows_kept":39,"cut":false,"hidden":true,"merged":[[2,4,4,9],[1,19,3,25]]}
[null,"Увага: цей файл не є офіційним програмним забезпеченням Hilti",null,null,null,null,null,null,null,null,null,null,null,"прямокутна","з обох боків",0.1]
[null,null,null,null,null,null,null,null,null,null,null,null,null,false,true,false,null,null,null,"Расчет расхода"]
[null,null,null,null,"Розрахунок витрат мастики СР611А при облаштуванні універсальної проходки"]
[]
[null,null,null,null,null,null,null,null,null,null,null,null,"Витрати на одну прямокутну проходку з одного боку:"]
[null,null,null,null,null,null,null,null,null,null,null,null,"V=",{"$f":"D12*D14*(100-I12)/100*I7*10^-3","v":321.75},"ml"]
[null,null,"Діаметр отвору \"D\" : ",20," мм",null,null,"Товщина шару мастіки \"tA\"  : ",26," мм"]
[null,null,null,null,null,null,null,"(типова товщина шару мастики складає 25 мм, "]
[null,null,null,null,null,null,null,"див. Регламент)",null,null,null,null,"Витрати на одну круглу проходку з одного боку:"]
[]
[null,null,null,null,null,null,null,"Заповнення проходки   ",null,null,null,null,"V=",{"$f":"3.14*D7^2/4*(100-I12)/100*I7*10^-3","v":4.4901999999999997},"ml"]
[null,null,"Ширина проходки \"w\" :",150,"мм",null,null," мережами : ",45,"%"]
[]
[null,null,"Висота проходки \"h\" :",150,"мм",null,null,null,null,null,null,null,"Витрати на одну проходку з одного боку"]
[null,null,null,null,null,null,null,null,null,null,null,null,"V=",{"$f":"IF(N2,N6,N11)","v":4.4901999999999997},"ml"]
[null,null,null,null,null,null,null,null,null,null,null,null,"Витрати з обох боків:"]
[null,null,"Кількість отворів : ",33," шт.",null,null,null,null,null,null,null,"V=",{"$f":"IF(O2,N15*2,N15)","v":8.9803999999999995},"ml"]
[null,null,null,null,null,null,null,null,null,null,null,null,"Витрати з урахуванням +10%:",null,null,null,null,null,null,"Объем герметика"]
[null,null,"Ціна за шт.  :",200," грн.с НДС",null,null,null,null,null,null,null,"V=",{"$f":"IF(P2,N17*1.1,N17)","v":8.9803999999999995},"ml"]
[null,null,null,null,null,null,null,"Загальна кількість мастики \"V\" :   ",{"$f":"D17*N19","v":296.35319999999996}," мл",null,null,null,null,null,null,null,null,null,"3.1. Теоретична витрата (V, мл) протипожежної мастики Hilti CFS-IS (CP 611A) на одну проходку розраховується за формулою: "]
[null,null,null,null,null,null,null,null,null,null,null,null,null,null,null,null,null,null,null,"              V = (w * h * tA – (S1…Sn) * tA) * 10 - 3,                                                                                (1)"]
[null,null,null,null,null,null,null,"Загальна вартість  мастики :  ",{"$f":"I24*D19","v":200}," грн. з ПДВ",null,null,null,null,null,null,null,null,null,"де w та h – відповідно ширина та висота заповнення проходки, мм;"]
[null,null,null,null,null,null,null,null,null,null,null,null,null,null,null,null,null,null,null,"tA – товщина заповнення проходки, мм;"]
[null,null,null,null,null,null,null,"Загалом необхідно мастики (капсул 310 мл) :  ",{"$f":"ROUNDUP((I20/310),0)","v":1},"шт.",null,null,null,null,null,null,null,null,null,"S1…Sn - площі перерізу інженерних комунікацій, які проходять крізь проходку, мм2."]
[]
[null,"* Розрахунок приблизний. Фактичні витрати залежать від умов монтажу.",null,null,null,null,null,null,null,null,null,null,null,null,null,null,null,null,null,"Якщо переріз проходки є круглої форми, розрахунок витрати мастики вести за формулою "]
[null,null,null,null,null,null,null,null,null,null,null,null,null,null,null,null,null,null,null,"        V = (0,785 * D2 * tA – (S1…Sn) * tA) * 10 - 3,                                                                       (2)"]
[null,null,null,null,null,null,null,null,null,null,null,null,null,null,null,null,null,null,null,"де D – діаметр отвору, мм."]
[]
[]
[]
[]
[]
[]
[]
[]
[]
[null,"У разі виникнення питань, ласкаво просимо звязатись "]
[null,"з регіональним представником Hilti чи клієнтською службою за тел. 0443905566"]

{"sheet":"CP660 - унів.","index":13,"n_rows":49,"n_cols":28,"rows_kept":49,"cut":false,"hidden":true,"merged":[[1,26,3,32],[2,3,4,9]]}
[null,"Увага: цей файл не є офіційним програмним забезпеченням Hilti"]
[null,null,null,null,null,null,null,null,null,null,null,null,null,null,null,null,null,null,null,null,null,false,false,null,null,null,"Розрахунок витрат"]
[null," ",null,"Розрахунок витрат протипожежної піни СР660, СР620 для змішаної проходки"]
[]
[]
[]
[null,null,"Ширина проходки \"w\" : ",100," мм"]
[]
[null,null,"Висота проходки \"h\" : ",600," мм",null,null,null,"Витрати піни на 1 проходку \"V\" :",{"$f":"S15/1000000","v":5.4},"л",null,null,null,null,null,"Объем проходки : ",null,{"$f":"IF(W2,(3.14*(D13/2)*(D13/2)*D11),(D7*D9*D11))","v":6000000},"мм3"]
[]
[null,null,"Товщина проходки \"tA\" : ",100," мм",null,null,null,"Загальний обсяг піни: ",{"$f":"S15*D17/1000000","v":540}," л"]
[]
[null,null,"Діаметр проходки \"D\" :  ",600," мм",null,null,null,null,null,null,null," "]
[]
[null,null,"Заповнення проходки мережами : ",10," %",null,null,null,null,null,null,null," ",null,null,null,"Расход на одну проходку:",null,{"$f":"IF(V2,1.1*S9*(100-D15)/100,S9*(100-D15)/100)","v":5400000}]
[]
[null,null,"Кількість проходок : ",100,"шт.",null,null,null,null,null,null,null,null,null,null,null,"Объем заполнения",null,{"$f":"S15*D17","v":540000000},"мм3"]
[]
[null,null,"Ціна 1 капсули СР660/620 (з ПДВ) : ",200," грн.",null,null,null,null,null,null,null,null,null,null,null,"Объем баллона химии : ",null,2100000,"мм3"]
[]
[]
[]
[]
[]
[null,null,null,null,null,"Загалом необхідно піни (капсул 325 мл) : ",{"$f":"ROUNDUP(J11/S19*1000000,0)","v":258},"шт.",null,null,null,null,null,null,null,null,null,null,null,{"$f":"S9*D15%","v":600000}]
[]
[null,null,null,null,null,"Загальна вартість рішення : ",{"$f":"G25*D19","v":51600},"грн. с НДС"]
[]
[null,"* Розрахунок приблизний, фактичний розрахунок залежить від процессу монтажа. "]
[null,"**У разі використання піни СР 620, отриманий результат потрібно помножити на 1,1"]
[]
[null,null,null,null,null,null,null,null,null,null,null,null,null,null,null,null,null,null,null,null,null,null,null,null,null,null,null,"3.1. Теоретична витрата (V, л) протипожежної піни Hilti CFS-F FX (CP 660) на одну проходку розраховується за формулою: "]
[null,null,null,null,null,null,null,null,null,null,null,null,null,null,null,null,null,null,null,null,null,null,null,null,null,null,null," V = (w * h * tA – (S1…Sn) * tA)) * 10 - 6,                                              (1)"]
[null,null,null,null,null,null,null,null,null,null,null,null,null,null,null,null,null,null,null,null,null,null,null,null,"Доп. условие",null,null,"де w та h – відповідно ширина та висота заповнення проходки, мм;"]
[null,null,null,null,null,null,null,null,null,null,null,null,null,null,null,null,null,null,null,null,null,null,null,null,"S1≥ 0;",null,null,"tA – товщина заповнення проходки, мм;"]
[null,null,null,null,null,null,null,null,null,null,null,null,null,null,null,null,null,null,null,null,null,null,null,null,"S2≥ 0;",null,null,"S1…Sn - площі перерізу інженерних комунікацій, які проходять крізь проходку, мм2."]
[null,null,null,null,null,null,null,null,null,null,null,null,null,null,null,null,null,null,null,null,null,null,null,null,"                                   S2 для пучков кабелей≥ 0;"]
[null,null,null,null,null,null,null,null,null,null,null,null,null,null,null,null,null,null,null,null,null,null,null,null,null,null,null,"Якщо переріз проходки є круглої форми, розрахунок витрати піни вести за формулою "]
[null,null,null,null,null,null,null,null,null,null,null,null,null,null,null,null,null,null,null,null,null,null,null,null,null,null,null,"                                            V = (0,785 * D2 * tA – (S1…Sn) * tA) * 10 - 6,                                        (2)"]
[null,"У разі виникнення питань, ласкаво просимо звязатись ",null,null,null,null,null,null,null,null,null,null,null,null,null,null,null,null,null,null,null,null,null,null,null,null,null,"де D – діаметр отвору, мм.                                                   "]
[null,"з регіональним представником Hilti чи клієнтською службою за тел. 0443905566",null,null,null,null,null,null,null,null,null,null,null,null,null,null,null,null,null,null,null,null,null,null,null,null,null,"Кількість тубів піни визначається шляхом ділення теоретичної витрати в л  на теоретичний вихід піни з одного туба, який складає приблизно 2,1 л за стандартних умов застосування: температура туба перед дозуванням 25°С, температура навколишнього середовища при дозуванні мінімум 10°С. "]
[null,null,null,null,null,null,null,null,null,null,null,null,null,null,null,null,null,null,null,null,null,null,null,null,null,null,null,"Теоретичний вихід піни з одного туба залежить від температури піни в тубі та температури виконання робіт та зворотньо пропорційний до них."]
[null,null,null,null,null,null,null,null,null,null,null,null,null,null,null,null,null,null,null,null,null,null,null,null,null,null,null,"При розрахунку кількості тубів необхідно заздалегідь враховувати кліматичні умови монтажу піни."]
[null,"Зрізані (зайві) шматочки піни допускається вкладати в наступні проходки і заповнювати піною."]
[null,null,null,null,null,null,null,null,null,null,null,null,null,null,null,null,null,null,null,null,null,null,null,null,null,null,null,"Важливо! При проектуванні складових проходки з заповненням піною CFS-F FX (CP 660) та розрахунку витрати піни необхідно дотримуватись обов’язкової умови – загальна максимальна площа перерізів інженерних комунікацій, які проходять крізь проходку не має складати більше 60% від загальної площі перерізу проходки."]
[]
[null,null,null,null,null,null,null,null,null,null,null,null,null,null,null,null,null,null,null,null,null,null,null,null,null,null,null,"􀉌􀉟􀉨􀉪􀉟􀉬􀉢􀉱􀉧􀉢􀉣 􀉜􀉢􀉯􀉿􀉞 􀉩􀉿􀉧􀉢 􀉡 􀉨􀉞􀉧􀉨􀉝􀉨 􀉬􀉭􀉛􀉚 􀉡􀉚􀉥􀉟􀉠􀉢􀉬ь 􀉜􀉿􀉞 􀉬􀉟􀉦􀉩􀉟􀉪􀉚􀉬􀉭􀉪􀉢 􀉩􀉿􀉧􀉢 􀉜 􀉬􀉭􀉛􀉿 􀉬􀉚 􀉬􀉟􀉦􀉩􀉟􀉪􀉚􀉬􀉭􀉪􀉢"]
[null,null,null,null,null,null,null,null,null,null,null,null,null,null,null,null,null,null,null,null,null,null,null,null,null,null,null,"􀉜􀉢􀉤􀉨􀉧􀉚􀉧􀉧􀉹 􀉪􀉨􀉛􀉿􀉬 􀉬􀉚 􀉡􀉜􀉨􀉪􀉨􀉬􀉧ь􀉨 􀉩􀉪􀉨􀉩􀉨􀉪􀉰􀉿􀉣􀉧􀉢􀉣 􀉞􀉨 􀉧􀉢􀉯."]
[null,null,null,null,null,null,null,null,null,null,null,null,null,null,null,null,null,null,null,null,null,null,null,null,null,null,null,"􀉉􀉪􀉢 􀉪􀉨􀉡􀉪􀉚􀉯􀉭􀉧􀉤􀉭 􀉤􀉿􀉥ь􀉤􀉨􀉫􀉬􀉿 􀉬􀉭􀉛􀉿􀉜 􀉧􀉟􀉨􀉛􀉯􀉿􀉞􀉧􀉨 􀉡􀉚􀉡􀉞􀉚􀉥􀉟􀉝􀉿􀉞ь 􀉜􀉪􀉚􀉯􀉨􀉜􀉭􀉜􀉚􀉬􀉢 􀉤􀉥􀉿􀉦􀉚􀉬􀉢􀉱􀉧􀉿 􀉭􀉦􀉨􀉜􀉢 􀉦􀉨􀉧􀉬􀉚􀉠􀉭 􀉩􀉿􀉧􀉢."]

{"sheet":"СР670+СР606 универсал.проходка ","index":14,"n_rows":1048576,"n_cols":24,"rows_kept":4500,"cut":true,"hidden":true,"merged":[[2,3,4,8],[20,1,20,2],[1,23,3,27]],"bounds":{"rows_first":2000,"rows_last":500,"rows_between":2000,"halvings":0},"read":"row_number_cap"}
[null,"Увага: цей файл не є офіційним програмним забезпеченням Hilti",null,null,null,null,null,null,null,null,null,null,null,null,null,null,null,null,"+10%"]
[null,null,null,null,null,null,null,null,null,null,null,null,null,null,null,null,null,null,false,null,null,null,null,"Розрахунок витрат:"]
[null,null,null,"Розрахунок витрат покриття СР670 та герметіка СР606 для універсальної проходки",null,null,null,null,null,null,null,"Витрати СР670"]
[]
[null,null,null,null,null,null,null,null,null,null,null,"На поверхні проходки"]
[null,null,null,null,null,null,null,null,null,null,null,{"$f":"2*D7*D9*(100-I7)/100*I11*10^-3","v":1980},"ml"]
[null,null,"Ширина проходки \"w\" : ",1000," мм",null,null,"Заповнення проходки мережами : ",1," %",null,"На нахльост на будівельні конструкції:"]
[null,null,null,null,null,null,null,null,null,null,null,{"$f":"2*2*(((D9+40)*20+(D7*20)))*I11*10^-3","v":163.20000000000002},"ml"]
[null,null,"Висота проходки \"h\" : ",1000," мм",null,null,"Загальний периметр мереж : ",12,"мм",null,"На прокрас мереж:"]
[null,"Загальна глибина",null,null,null,null,null,null,null,null,null,{"$f":"2*I9*I11*D13*10^-3","v":4.8},"ml"]
[null,null," заповнення  мінватою \"A1\"  : ",100," мм",null,null,"Товщина мокрого шару CP670: ",1,"мм",null,"Загалом витрати на одну проходку з обох боків:"]
[null,null,null,null,null,null,null,null,null,null,null,{"$f":"L6+L8+L10","v":2148},"ml"]
[null,null,"Довжина нанесення на мережі \"LAP\"  : ",200,"мм",null,null,"Товщина мокрого шару CP606: ",1,"мм",null,"Загалом витрати на одну проходку +10%:"]
[null,null,"(покриття CP670, рахуючі від площини мінвати)",null,null,null,null,null,null,null,null,{"$f":"L12*1.1","v":2362.8000000000002},"ml"]
[null,null,"Кількість проходок : ",1,"шт."]
[null,null,null,null,null,null,null,null,null,null,null,"Витрати СР606"]
[null,null,"Ціна 1 ведра СР670  : ",3500," грн. з ПДВ",null,null,"Загальні витрати покриття СР670 : ",{"$f":"IF(S2,L14*D15*10^-3,L12*D15*10^-3)","v":2.1480000000000001},"л"]
[null,null,null,null,null,null,null,null,null,null,null,"На периметр пліт:"]
[null,null,"Ціна 1 шт СР606  : ",220," грн. з ПДВ",null,null,"Загальні витрати герметика СР606 : ",{"$f":"IF(S2,L25*D15,L23*D15)","v":401.2},"мл",null,{"$f":"2*(D9+D7)*D11*10^-3","v":400},"ml"]
[null,null,null,null,null,null,null,null,null,null,null,"На ущільнення мереж:"]
[null,"Ціна мин. ваты за м³ : ",null,3500," грн. з ПДВ",null,null,"Загальні витрати мін. вати : ",{"$f":"IF(S2,L30*D15,L28*D15)","v":9.9000000000000005E-2}," м³ ",null,{"$f":"I9*D11*I13*10^-3","v":1.2},"ml"]
[null,null,null,null,null,null,null,null,null,null,null,"Загалом витрати СР606:"]
[null,null,null,null,null,null,null,null,null," ",null,{"$f":"L19+L21","v":401.2},"ml"]
[null,null,null,null,null,null,null,null,null,null,null,"Загалом витрати СР606 +10%:"]
[null,null,null,null,null,null,"Загалом необхідно покриття СР670 (відер 4л): ",{"$f":"ROUNDUP((I17/4),0)","v":1},"шт.",null,null,{"$f":"L23*1.1","v":441.32000000000005},"ml",null,null,null,null,null,null,null,null,"Доп. условия",null,"1. Розрахунок витрат матеріалів."]
[null,null,null,null,null,null,"Загалом необхідно герметику СР606 (капсул 310 мл): ",{"$f":"ROUNDUP(I19/310,0)","v":2},"шт.",null,null,null,null,null,null,null,null,null,null,null,null,null,null,"3.1.  Теоретична витрата (V, л) протипожежного покриття Hilti CFS-CT (CP 670) розраховується за формулою: "]
[null,null,null,null,null,null,null,null,null,null,null,"Витрати мінвати:",null,null,null,null,null,null,null,null,null,"S1=0",null," V = (2 * (h * w - S1…Sn) * f1 + 2 * (2 * ((h + 0,2) * 0,1) * (w * 0,1)) + (P1…Pn) * f1 * f2)) * 10 - 6     (1)"]
[null,null,null,null,null,null,"Загальна вартість рішення стоимость решения : ",{"$f":"D17*H25+D19*H26+D21*I21","v":4286.5}," грн. с НДС",null,null,{"$f":"D7*D9*D11*(100-I7)/100*10^-9","v":9.9000000000000005E-2},"м куб",null,null,null,null,null,null,null,null,"S2=0",null,"де h та w – габаритні розміри проходки, мм;"]
[null,null,null,null,null,null,null,null,null,null,null,"з урахуванням +10%",null,null,null,null,null,null,null,null,null,"S3=0",null,"S1…Sn – площі перерізу комунікацій, які проходять крізь проходку, мм2;"]
[null,"* Розрахунок приблизний. Фактичні витрати залежать від умов монтажу.",null,null,null,null,null,null,null,null,null,{"$f":"L28*1.1","v":0.10890000000000001},"м куб",null,null,null,null,null,null,null,null,"S4=0",null,"f1 = 1,3 – стандартна товщина мокрого шару покриття, мм;"]
[null,null,null,null,null,null,null,null,null,null,null,null,null,null,null,null,null,null,null,null,null,"S5=50",null,"P1…Pn – периметри комунікацій, які проходять крізь проходку, мм;"]
[null,null,null,null,null,null,null,null,null,null,null,null,null,null,null,null,null,null,null,null,null,"S6=3",null,"f2 = 200 – довжина нанесення покриття від площини проходки, мм."]
[null,null,null,null,null,null,null,null,null,null,null,null,null,null,null,null,null,null,null,null,null,"S7=3",null,"Для розрахунку витрати покриття для отримання іншої товщини шару сухого покриття або іншої ширини нанесення (наприклад, згідно до п. 5.1.2) необхідно відповідне коригування коефіцієнтів f1 та f2."]
[null,null,null,null,null,null,null,null,null,null,null,null,null,null,null,null,null,null,null,null,null,"S8=0",null,"Для розрахунку кількості ємностей покриття необхідно розділити теоретичну витрату на 4 та прийняти найближче більше число."]
[null,null,null,null,null,null,null,null,null,null,null,null,null,null,null,null,null,null,null,null,null,"S9=17"]
[null,null,null,null,null,null,null,null,null,null,null,null,null,null,null,null,null,null,null,null,null,"S10=17",null,"3.2. Теоретична витрата (V, мл) протипожежного акрилового герметику Hilti CFS-S ACR (CP 606) розраховується за формулою: "]
[null,null,null,null,null,null,null,null,null,null,null,null,null,null,null,null,null,null,null,null,null,"S11=0",null,"                 V = (2 * (h * Te) * f + 2 * (w * Te) * f + (P1…Pn) * Te * f) * 10 - 3                                             (2)"]
[null,null,null,null,null,null,null,null,null,null,null,null,null,null,null,null,null,null,null,null,null,"S12=30",null,"де h та w – габаритні розміри проходки, мм;"]
[null,null,null,null,null,null,null,null,null,null,null,null,null,null,null,null,null,null,null,null,null,"S13=0",null,"f = 1 – стандартна товщина шару герметику, мм;"]
[null,null,null,null,null,null,null,null,null,null,null,null,null,null,null,null,null,null,null,null,null,"S14=40",null,"P1…Pn – периметри комунікацій, які проходять крізь проходку, мм."]
[null,null,null,null,null,null,null,null,null,null,null,null,null,null,null,null,null,null,null,null,null,null,null,"Te – товщина проходки, мм."]
[null,null,null,null,null,null,null,null,null,null,null,null,null,null,null,null,null,null,null,null,null,null,null,"Для розрахунку кількості тубів герметику необхідно розділити теоретичну витрату на 310 та прийняти найближче більше число."]
[]
[null,"У разі виникнення питань, ласкаво просимо звязатись ",null,null,null,null,null,null,null,null,null,null,null,null,null,null,null,null,null,null,null,null,null,"3.3. Теоретична витрата (V, м3) негорючої мінеральної вати розраховується за формулою:"]
[null,"з регіональним представником Hilti чи клієнтською службою за тел. 0443905566",null,null,null,null,null,null,null,null,null,null,null,null,null,null,null,null,null,null,null,null,null,"       V = h * w * Te - (P1…Pn) * Te                                                                                                  (3)"]
[null,null,null,null,null,null,null,null,null,null,null,null,null,null,null,null,null,null,null,null,null,null,null,"де h та w – габаритні розміри проходки, м;"]
[null,null,null,null,null,null,null,null,null,null,null,null,null,null,null,null,null,null,null,null,null,null,null,"P1…Pn – периметри комунікацій, які проходять крізь проходку, м;"]
[null,null,null,null,null,null,null,null,null,null,null,null,null,null,null,null,null,null,null,null,null,null,null,"Te – товщина проходки, м."]
[]
[null,null,null,null,null,null,null,null,null,null,null,null,null,null,null,null,null,null,null,null,null,null,null,"3.2. Теоретична витрата (L, м.п.) протипожежної стрічки Hilti CFS-W P на один трубопровід розраховується за формулою: "]
[null,null,null,null,null,null,null,null,null,null,null,null,null,null,null,null,null,null,null,null,null,null,null,"                                L = ((3,14 * (dc + 2* tDЕ + 4) + ΣKN + 20)) * 10 - 3,       "]
[null,null,null,null,null,null,null,null,null,null,null,null,null,null,null,null,null,null,null,null,null,null,null,"де dc – зовнішній діаметр трубопроводу, мм; "]
[null,null,null,null,null,null,null,null,null,null,null,null,null,null,null,null,null,null,null,null,null,null,null,"tDE – товщина ізоляції трубопроводу, мм; "]
[null,null,null,null,null,null,null,null,null,null,null,null,null,null,null,null,null,null,null,null,null,null,null,"4 – товщина першого шару стрічки, мм; "]
[null,null,null,null,null,null,null,null,null,null,null,null,null,null,null,null,null,null,null,null,null,null,null,"20 – фінішний нахлест останнього шару стрічки, мм, "]
[null,null,null,null,null,null,null,null,null,null,null,null,null,null,null,null,null,null,null,null,null,null,null,"KN = 3,14 * (dc + 2* tDЕ + 8…16) – доданок (-ки), який (-і) визначається кількістю шарів стрічки; числове значення приймається 8 – для 2-го шару, 12 – для 3-го шару, 16 – для 4-го шару стрічки "]
[null,null,null,null,null,null,null,null,null,null,null,null,null,null,null,null,null,null,null,null,null,null,null,"Також витрата стрічки може прийматися за таблицями нижче для технічних рішень згідно до Сертифікату відповідності. "]
[null,null,null,null,null,null,null,null,null,null,null,null,null,null,null,null,null,null,null,null,null,null,null,"Якщо трубопровід є неізольованим, tDЕ = 0. "]
[null,null,null,null,null,null,null,null,null,null,null,null,null,null,null,null,null,null,null,null,null,null,null,"Підчас розрахунку витрати обов’язково враховувати кількість шарів стрічки згідно до п. 4.8. шляхом використання необхідної кількості доданків у формулах (1) та (2). "]
[]
[]
[]
[]
[]
[]
[]
[]
[]
[]
[]
[]
[]
[]
[]
[]
[]
[]
[]
[]
[]
[]
[]
[]
[]
[]
[]
[]
[]
[]
[]
[]
[]
[]
[]
[]
[]
[]
[]
[]
[]
[]
[]
[]
[]
[]
[]
[]
[]
[]
[]
[]
[]
[]
[]
[]
[]
[]
[]
[]
[]
[]
[]
[]
[]
[]
[]
[]
[]
[]
[]
[]
[]
[]
[]
[]
[]
[]
[]
[]
[]
[]
[]
[]
[]
[]
[]
[]
[]
[]
[]
[]
[]
[]
[]
[]
[]
[]
[]
[]
[]
[]
[]
[]
[]
[]
[]
[]
[]
[]
[]
[]
[]
[]
[]
[]
[]
[]
[]
[]
[]
[]
[]
[]
[]
[]
[]
[]
[]
[]
[]
[]
[]
[]
[]
[]
[]
[]
[]
[]
[]
[]
[]
[]
[]
[]
[]
[]
[]
[]
[]
[]
[]
[]
[]
[]
[]
[]
[]
[]
[]
[]
[]
[]
[]
[]
[]
[]
[]
[]
[]
[]
[]
[]
[]
[]
[]
[]
[]
[]
[]
[]
[]
[]
[]
[]
[]
[]
[]
[]
[]
[]
[]
[]
[]
[]
[]
[]
[]
[]
[]
[]
[]
[]
[]
[]
[]
[]
[]
[]
[]
[]
[]
[]
[]
[]
[]
[]
[]
[]
[]
[]
[]
[]
[]
[]
[]
[]
[]
[]
[]
[]
[]
[]
[]
[]
[]
[]
[]
[]
[]
[]
[]
[]
[]
[]
[]
[]
[]
[]
[]
[]
[]
[]
[]
[]
[]
[]
[]
[]
[]
[]
[]
[]
[]
[]
[]
[]
[]
[]
[]
[]
[]
[]
[]
[]
[]
[]
[]
[]
[]
[]
[]
[]
[]
[]
[]
[]
[]
[]
[]
[]
[]
[]
[]
[]
[]
[]
[]
[]
[]
[]
[]
[]
[]
[]
[]
[]
[]
[]
[]
[]
[]
[]
[]
[]
[]
[]
[]
[]
[]
[]
[]
[]
[]
[]
[]
[]
[]
[]
[]
[]
[]
[]
[]
[]
[]
[]
[]
[]
[]
[]
[]
[]
[]
[]
[]
[]
[]
[]
[]
[]
[]
[]
[]
[]
[]
[]
[]
[]
[]
[]
[]
[]
[]
[]
[]
[]
[]
[]
[]
[]
[]
[]
[]
[]
[]
[]
[]
[]
[]
[]
[]
[]
[]
[]
[]
[]
[]
[]
[]
[]
[]
[]
[]
[]
[]
[]
[]
[]
[]
[]
[]
[]
[]
[]
[]
[]
[]
[]
[]
[]
[]
[]
[]
[]
[]
[]
[]
[]
[]
[]
[]
[]
[]
[]
[]
[]
[]
[]
[]
[]
[]
[]
[]
[]
[]
[]
[]
[]
[]
[]
[]
[]
[]
[]
[]
[]
[]
[]
[]
[]
[]
[]
[]
[]
[]
[]
[]
[]
[]
[]
[]
[]
[]
[]
[]
[]
[]
[]
[]
[]
[]
[]
[]
[]
[]
[]
[]
[]
[]
[]
[]
[]
[]
[]
[]
[]
[]
[]
[]
[]
[]
[]
[]
[]
[]
[]
[]
[]
[]
[]
[]
[]
[]
[]
[]
[]
[]
[]
[]
[]
[]
[]
[]
[]
[]
[]
[]
[]
[]
[]
[]
[]
[]
[]
[]
[]
[]
[]
[]
[]
[]
[]
[]
[]
[]
[]
[]
[]
[]
[]
[]
[]
[]
[]
[]
[]
[]
[]
[]
[]
[]
[]
[]
[]
[]
[]
[]
[]
[]
[]
[]
[]
[]
[null,null,null,"Общий оборот"]
[]
[]
[]
[]
[]
[]
[]
[]
[]
[]
[]
[]
[]
[]
[]
[]
[]
[]
[]
[]
[]
[]
[]
[]
[]
[]
[]
[]
[]
[]
[]
[]
[]
[]
[]
[]
[]
[]
[]
[]
[]
[]
[]
[]
[]
[]
[]
[]
[]
[]
[]
[]
[]
[]
[]
[]
[]
[]
[]
[]
[]
[]
[]
[]
[]
[]
[]
[]
[]
[]
[]
[]
[]
[]
[]
[]
[]
[]
[]
[]
[]
[]
[]
[]
[]
[]
[]
[]
[]
[]
[]
[]
[]
[]
[]
[]
[]
[]
[]
[]
[]
[]
[]
[]
[]
[]
[]
[]
[]
[]
[]
[]
[]
[]
[]
[]
[]
[]
[]
[]
[]
[]
[]
[]
[]
[]
[]
[]
[]
[]
[]
[]
[]
[]
[]
[]
[]
[]
[]
[]
[]
[]
[]
[]
[]
[]
[]
[]
[]
[]
[]
[]
[]
[]
[]
[]
[]
[]
[]
[]
[]
[]
[]
[]
[]
[]
[]
[]
[]
[]
[]
[]
[]
[]
[]
[]
[]
[]
[]
[]
[]
[]
[]
[]
[]
[]
[]
[]
[]
[]
[]
[]
[]
[]
[]
[]
[]
[]
[]
[]
[]
[]
[]
[]
[]
[]
[]
[]
[]
[]
[]
[]
[]
[]
[]
[]
[]
[]
[]
[]
[]
[]
[]
[]
[]
[]
[]
[]
[]
[]
[]
[]
[]
[]
[]
[]
[]
[]
[]
[]
[]
[]
[]
[]
[]
[]
[]
[]
[]
[]
[]
[]
[]
[]
[]
[]
[]
[]
[]
[]
[]
[]
[]
[]
[]
[]
[]
[]
[]
[]
[]
[]
[]
[]
[]
[]
[]
[]
[]
[]
[]
[]
[]
[]
[]
[]
[]
[]
[]
[]
[]
[]
[]
[]
[]
[]
[]
[]
[]
[]
[]
[]
[]
[]
[]
[]
[]
[]
[]
[]
[]
[]
[]
[]
[]
[]
[]
[]
[]
[]
[]
[]
[]
[]
[]
[]
[]
[]
[]
[]
[]
[]
[]
[]
[]
[]
[]
[]
[]
[]
[]
[]
[]
[]
[]
[]
[]
[]
[]
[]
[]
[]
[]
[]
[]
[]
[]
[]
[]
[]
[]
[]
[]
[]
[]
[]
[]
[]
[]
[]
[]
[]
[]
[]
[]
[]
[]
[]
[]
[]
[]
[]
[]
[]
[]
[]
[]
[]
[]
[]
[]
[]
[]
[]
[]
[]
[]
[]
[]
[]
[]
[]
[]
[]
[]
[]
[]
[]
[]
[]
[]
[]
[]
[]
[]
[]
[]
[]
[]
[]
[]
[]
[]
[]
[]
[]
[]
[]
[]
[]
[]
[]
[]
[]
[]
[]
[]
[]
[]
[]
[]
[]
[]
[]
[]
[]
[]
[]
[]
[]
[]
[]
[]
[]
[]
[]
[]
[]
[]
[]
[]
[]
[]
[]
[]
[]
[]
[]
[]
[]
[]
[]
[]
[]
[]
[]
[]
[]
[]
[]
[]
[]
[]
[]
[]
[]
[]
[]
[]
[]
[]
[]
[]
[]
[]
[]
[]
[]
[]
[]
[]
[]
[]
[]
[]
[]
[]
[]
[]
[]
[]
[]
[]
[]
[]
[]
[]
[]
[]
[]
[]
[]
[]
[]
[]
[]
[]
[]
[]
[]
[]
[]
[]
[]
[]
[]
[]
[]
[]
[]
[]
[]
[]
[]
[]
[]
[]
[]
[]
[]
[]
[]
[]
[]
[]
[]
[]
[]
[]
[]
[]
[]
[]
[]
[]
[]
[]
[]
[]
[]
[]
[]
[]
[]
[]
[]
[]
[]
[]
[]
[]
[]
[]
[]
[]
[]
[]
[]
[]
[]
[]
[]
[]
[]
[]
[]
[]
[]
[]
[]
[]
[]
[]
[]
[]
[]
[]
[]
[]
[]
[]
[]
[]
[]
[]
[]
[]
[]
[]
[]
[]
[]
[]
[]
[]
[]
[]
[]
[]
[]
[]
[]
[]
[]
[]
[]
[]
[]
[]
[]
[]
[]
[]
[]
[]
[]
[]
[]
[]
[]
[]
[]
[]
[]
[]
[]
[]
[]
[]
[]
[]
[]
[]
[]
[]
[]
[]
[]
[]
[]
[]
[]
[]
[]
[]
[]
[]
[]
[]
[]
[]
[]
[]
[]
[]
[]
[]
[]
[]
[]
[]
[]
[]
[]
[]
[]
[]
[]
[]
[]
[]
[]
[]
[]
[]
[]
[]
[]
[]
[]
[]
[]
[]
[]
[]
[]
[]
[]
[]
[]
[]
[]
[]
[]
[]
[]
[]
[]
[]
[]
[]
[]
[]
[]
[]
[]
[]
[]
[]
[]
[]
[]
[]
[]
[]
[]
[]
[]
[]
[]
[]
[]
[]
[]
[]
[]
[]
[]
[]
[]
[]
[]
[]
[]
[]
[]
[]
[]
[]
[]
[]
[]
[]
[]
[]
[]
[]
[]
[]
[]
[]
[]
[]
[]
[]
[]
[]
[]
[]
[]
[]
[]
[]
[]
[]
[]
[]
[]
[]
[]
[]
[]
[]
[]
[]
[]
[]
[]
[]
[]
[]
[]
[]
[]
[]
[]
[]
[]
[]
[]
[]
[]
[]
[]
[]
[]
[]
[]
[]
[]
[]
[]
[]
[]
[]
[]
[]
[]
[]
[]
[]
[]
[]
[]
[]
[]
[]
[]
[]
[]
[]
[]
[]
[]
[]
[]
[]
[]
[]
[]
[]
[]
[]
[]
[]
[]
[]
[]
[]
[]
[]
[]
[]
[]
[]
[]
[]
[]
[]
[]
[]
[]
[]
[]
[]
[]
[]
[]
[]
[]
[]
[]
[]
[]
[]
[]
[]
[]
[]
[]
[]
[]
[]
[]
[]
[]
[]
[]
[]
[]
[]
[]
[]
[]
[]
[]
[]
[]
[]
[]
[]
[]
[]
[]
[]
[]
[]
[]
[]
[]
[]
[]
[]
[]
[]
[]
[]
[]
[]
[]
[]
[]
[]
[]
[]
[]
[]
[]
[]
[]
[]
[]
[]
[]
[]
[]
[]
[]
[]
[]
[]
[]
[]
[]
[]
[]
[]
[]
[]
[]
[]
[]
[]
[]
[]
[]
[]
[]
[]
[]
[]
[]
[]
[]
[]
[]
[]
[]
[]
[]
[]
[]
[]
[]
[]
[]
[]
[]
[]
[]
[]
[]
[]
[]
[]
[]
[]
[]
[]
[]
[]
[]
[]
[]
[]
[]
[]
[]
[]
[]
[]
[]
[]
[]
[]
[]
[]
[]
[]
[]
[]
[]
[]
[]
[]
[]
[]
[]
[]
[]
[]
[]
[]
[]
[]
[]
[]
[]
[]
[]
[]
[]
[]
[]
[]
[]
[]
[]
[]
[]
[]
[]
[]
[]
[]
[]
[]
[]
[]
[]
[]
[]
[]
[]
[]
[]
[]
[]
[]
[]
[]
[]
[]
[]
[]
[]
[]
[]
[]
[]
[]
[]
[]
[]
[]
[]
[]
[]
[]
[]
[]
[]
[]
[]
[]
[]
[]
[]
[]
[]
[]
[]
[]
[]
[]
[]
[]
[]
[]
[]
[]
[]
[]
[]
[]
[]
[]
[]
[]
[]
[]
[]
[]
[]
[]
[]
[]
[]
[]
[]
[]
[]
[]
[]
[]
[]
[]
[]
[]
[]
[]
[]
[]
[]
[]
[]
[]
[]
[]
[]
[]
[]
[]
[]
[]
[]
[]
[]
[]
[]
[]
[]
[]
[]
[]
[]
[]
[]
[]
[]
[]
[]
[]
[]
[]
[]
[]
[]
[]
[]
[]
[]
[]
[]
[]
[]
[]
[]
[]
[]
[]
[]
[]
[]
[]
[]
[]
[]
[]
[]
[]
[]
[]
[]
[]
[]
[]
[]
[]
[]
[]
[]
[]
[]
[]
[]
[]
[]
[]
[]
[]
[]
[]
[]
[]
[]
[]
[]
[]
[]
[]
[]
[]
[]
[]
[]
[]
[]
[]
[]
[]
[]
[]
[]
[]
[]
[]
[]
[]
[]
[]
[]
[]
[]
[]
[]
[]
[]
[]
[]
[]
[]
[]
[]
[]
[]
[]
[]
[]
[]
[]
[]
[]
[]
[]
[]
[]
[]
[]
[]
[]
[]
[]
[]
[]
[]
[]
[]
[]
[]
[]
[]
[]
[]
[]
[]
[]
[]
[]
[]
[]
[]
[]
[]
[]
[]
[]
[]
[]
[]
[]
[]
[]
[]
[]
[]
[]
[]
[]
[]
[]
[]
[]
[]
[]
[]
[]
[]
[]
[]
[]
[]
[]
[]
[]
[]
[]
[]
[]
[]
[]
[]
[]
[]
[]
[]
[]
[]
[]
[]
[]
[]
[]
[]
[]
[]
[]
[]
[]
[]
[]
[]
[]
[]
[]
[]
[]
[]
[]
[]
[]
[]
[]
[]
[]
[]
[]
[]
[]
[]
[]
[]
[]
[]
[]
[]
[]
[]
[]
[]
[]
[]
[]
[]
[]
[]
[]
[]
[]
[]
[]
[]
[]
[]
[]
[]
[]
[]
[]
[]
[]
[]
[]
[]
[]
[]
[]
[]
[]
[]
[]
[]
[]
[]
[]
[]
[]
[]
[]
[]
[]
[]
[]
[]
[]
[]
[]
[]
[]
[]
[]
[]
[]
[]
[]
[]
[]
[]
[]
[]
[]
[]
[]
[]
[]
[]
[]
[]
[]
[]
[]
[]
[]
[]
[]
[]
[]
[]
[]
[]
[]
[]
[]
[]
[]
[]
[]
[]
[]
[]
[]
[]
[]
[]
[]
[]
[]
[]
[]
[]
[]
[]
[]
[]
[]
[]
[]
[]
[]
[]
[]
[]
[]
[]
[]
[]
[]
[]
[]
[]
[]
[]
[]
[]
[]
[]
[]
[]
[]
[]
[]
[]
[]
[]
[]
[]
[]
[]
[]
[]
[]
[]
[]
[]
[]
[]
[]
[]
[]
[]
[]
[]
[]
[]
[]
[]
[]
[]
[]
[]
[]
[]
[]
[]
[]
[]
[]
[]
[]
[]
[]
[]
[]
[]
[]
[]
[]
[]
[]
[]
[]
[]
[]
[]
[]
[]
[]
[]
[]
[]
[]
[]
[]
[]
[]
[]
[]
[]
[]
[]
[]
[]
[]
[]
[]
[]
[]
[]
[]
[]
[]
[]
[]
[]
[]
[]
[]
[]
[]
[]
[]
[]
[]
[]
[]
[]
[]
[]
[]
[]
[]
[]
[]
[]
[]
[]
[]
[]
[]
[]
[]
[]
[]
[]
[]
[]
[]
[]
[]
[]
[]
[]
[]
[]
[]
[]
[]
[]
[]
[]
[]
[]
[]
[]
[]
[]
[]
[]
[]
[]
[]
[]
[]
[]
[]
[]
[]
[]
[]
[]
[]
[]
[]
[]
[]
[]
[]
[]
[]
[]
[]
[]
[]
[]
[]
[]
[]
[]
[]
[]
[]
[]
[]
[]
[]
[]
[]
[]
[]
[]
[]
[]
[]
[]
[]
[]
[]
[]
[]
[]
[]
[]
[]
[]
[]
[]
[]
[]
[]
[]
[]
[]
[]
[]
[]
[]
[]
[]
[]
[]
[]
[]
[]
[]
[]
[]
[]
[]
[]
[]
[]
[]
[]
[]
[]
[]
[]
[]
[]
[]
[]
[]
[]
[]
[]
[]
[]
[]
[]
[]
[]
[]
[]
[]
[]
[]
[]
[]
[]
[]
[]
[]
[]
[]
[]
[]
[]
[]
[]
[]
[]
[]
[]
[]
[]
[]
[]
[]
[]
[]
[]
[]
[]
[]
[]
[]
[]
[]
[]
[]
[]
[]
[]
[]
[]
[]
[]
[]
[]
[]
[]
[]
[]
[]
[]
[]
[]
[]
[]
[]
[]
[]
[]
[]
[]
[]
[]
[]
[]
[]
[]
[]
[]
[]
[]
[]
[]
[]
[]
[]
[]
[]
[]
[]
[]
[]
[]
[]
[]
[]
[]
[]
[]
[]
[]
[]
[]
[]
[]
[]
[]
[]
[]
[]
[]
[]
[]
[]
[]
[]
[]
[]
[]
[]
[]
[]
[]
[]
[]
[]
[]
[]
[]
[]
[]
[]
[]
[]
[]
[]
[]
[]
[]
[]
[]
[]
[]
[]
[]
[]
[]
[]
[]
[]
[]
[]
[]
[]
[]
[]
[]
[]
[]
[]
[]
[]
[]
[]
[]
[]
[]
[]
[]
[]
[]
[]
[]
[]
[]
[]
[]
[]
[]
[]
[]
[]
[]
[]
[]
[]
[]
[]
[]
[]
[]
[]
[]
[]
[]
[]
[]
[]
[]
[]
[]
[]
[]
[]
[]
[]
[]
[]
[]
[]
[]
[]
[]
[]
[]
[]
[]
[]
[]
[]
[]
[]
[]
[]
[]
[]
[]
[]
[]
[]
[]
[]
[]
[]
[]
[]
[]
[]
[]
[]
[]
[]
[]
[]
[]
[]
[]
[]
[]
[]
[]
[]
[]
[]
[]
[]
[]
[]
[]
[]
[]
[]
[]
[]
[]
[]
[]
[]
[]
[]
[]
[]
[]
[]
[]
[]
[]
[]
[]
[]
[]
[]
[]
[]
[]
[]
[]
[]
[]
[]
[]
[]
[]
[]
[]
[]
[]
[]
[]
[]
[]
[]
[]
[]
[]
[]
[]
[]
[]
[]
[]
[]
[]
[]
[]
[]
[]
[]
[]
[]
[]
[]
[]
[]
[]
[]
[]
[]
[]
[]
[]
[]
[]
[]
[]
[]
[]
[]
[]
[]
[]
[]
[]
[]
[]
[]
[]
[]
[]
[]
[]
[]
[]
[]
[]
[]
[]
[]
[]
[]
[]
[]
[]
[]
[]
[]
[]
[]
[]
[]
[]
[]
[]
[]
[]
[]
[]
[]
[]
[]
[]
[]
[]
[]
[]
[]
[]
[]
[]
[]
[]
[]
[]
[]
[]
[]
[]
[]
[]
[]
[]
[]
[]
[]
[]
[]
[]
[]
[]
[]
[]
[]
[]
[]
[]
[]
[]
[]
[]
[]
[]
[]
[]
[]
[]
[]
[]
[]
[]
[]
[]
[]
[]
[]
[]
[]
[]
[]
[]
[]
[]
[]
[]
[]
[]
[]
[]
[]
[]
[]
[]
[]
[]
[]
[]
[]
[]
[]
[]
[]
[]
[]
[]
[]
[]
[]
[]
[]
[]
[]
[]
[]
[]
[]
[]
[]
[]
[]
[]
[]
[]
[]
[]
[]
[]
[]
[]
[]
[]
[]
[]
[]
[]
[]
[]
[]
[]
[]
[]
[]
[]
[]
[]
[]
[]
[]
[]
[]
[]
[]
[]
[]
[]
[]
[]
[]
[]
[]
[]
[]
[]
[]
[]
[]
[]
[]
[]
[]
[]
[]
[]
[]
[]
[]
[]
[]
[]
[]
[]
[]
[]
[]
[]
[]
[]
[]
[]
[]
[]
[]
[]
[]
[]
[]
[]
[]
[]
[]
[]
[]
[]
[]
[]
[]
[]
[]
[]
[]
[]
[]
[]
[]
[]
[]
[]
[]
[]
[]
[]
[]
[]
[]
[]
[]
[]
[]
[]
[]
[]
[]
[]
[]
[]
[]
[]
[]
[]
[]
[]
[]
[]
[]
[]
[]
[]
[]
[]
[]
[]
[]
[]
[]
[]
[]
[]
[]
[]
[]
[]
[]
[]
[]
[]
[]
[]
[]
[]
[]
[]
[]
[]
[]
[]
[]
[]
[]
[]
[]
[]
[]
[]
[]
[]
[]
[]
[]
[]
[]
[]
[]
[]
[]
[]
[]
[]
[]
[]
[]
[]
[]
[]
[]
[]
[]
[]
[]
[]
[]
[]
[]
[]
[]
[]
[]
[]
[]
[]
[]
[]
[]
[]
[]
[]
[]
[]
[]
[]
[]
[]
[]
[]
[]
[]
[]
[]
[]
[]
[]
[]
[]
[]
[]
[]
[]
[]
[]
[]
[]
[]
[]
[]
[]
[]
[]
[]
[]
[]
[]
[]
[]
[]
[]
[]
[]
[]
[]
[]
[]
[]
[]
[]
[]
[]
[]
[]
[]
[]
[]
[]
[]
[]
[]
[]
[]
[]
[]
[]
[]
[]
[]
[]
[]
[]
[]
[]
[]
[]
[]
[]
[]
[]
[]
[]
[]
[]
[]
[]
[]
[]
[]
[]
[]
[]
[]
[]
[]
[]
[]
[]
[]
[]
[]
[]
[]
[]
[]
[]
[]
[]
[]
[]
[]
[]
[]
[]
[]
[]
[]
[]
[]
[]
[]
[]
[]
[]
[]
[]
[]
[]
[]
[]
[]
[]
[]
[]
[]
[]
[]
[]
[]
[]
[]
[]
[]
[]
[]
[]
[]
[]
[]
[]
[]
[]
[]
[]
[]
[]
[]
[]
[]
[]
[]
[]
[]
[]
[]
[]
[]
[]
[]
[]
[]
[]
[]
[]
[]
[]
[]
[]
[]
[]
[]
[]
[]
[]
[]
[]
[]
[]
[]
[]
[]
[]
[]
[]
[]
[]
[]
[]
[]
[]
[]
[]
[]
[]
[]
[]
[]
[]
[]
[]
[]
[]
[]
[]
[]
[]
[]
[]
[]
[]
[]
[]
[]
[]
[]
[]
[]
[]
[]
[]
[]
[]
[]
[]
[]
[]
[]
[]
[]
[]
[]
[]
[]
[]
[]
[]
[]
[]
[]
[]
[]
[]
[]
[]
[]
[]
[]
[]
[]
[]
[]
[]
[]
[]
[]
[]
[]
[]
[]
[]
[]
[]
[]
[]
[]
[]
[]
[]
[]
[]
[]
[]
[]
[]
[]
[]
[]
[]
[]
[]
[]
[]
[]
[]
[]
[]
[]
[]
[]
[]
[]
[]
[]
[]
[]
[]
[]
[]
[]
[]
[]
[]
[]
[]
[]
[]
[]
[]
[]
[]
[]
[]
[]
[]
[]
[]
[]
[]
[]
[]
[]
[]
[]
[]
[]
[]
[]
[]
[]
[]
[]
[]
[]
[]
[]
[]
[]
[]
[]
[]
[]
[]
[]
[]
[]
[]
[]
[]
[]
[]
[]
[]
[]
[]
[]
[]
[]
[]
[]
[]
[]
[]
[]
[]
[]
[]
[]
[]
[]
[]
[]
[]
[]
[]
[]
[]
[]
[]
[]
[]
[]
[]
[]
[]
[]
[]
[]
[]
[]
[]
[]
[]
[]
[]
[]
[]
[]
[]
[]
[]
[]
[]
[]
[]
[]
[]
[]
[]
[]
[]
[]
[]
[]
[]
[]
[]
[]
[]
[]
[]
[]
[]
[]
[]
[]
[]
[]
[]
[]
[]
[]
[]
[]
[]
[]
[]
[]
[]
[]
[]
[]
[]
[]
[]
[]
[]
[]
[]
[]
[]
[]
[]
[]
[]
[]
[]
[]
[]
[]
[]
[]
[]
[]
[]
[]
[]
[]
[]
[]
[]
[]
[]
[]
[]
[]
[]
[]
[]
[]
[]
[]
[]
[]
[]
[]
[]
[]
[]
[]
[]
[]
[]
[]
[]
[]
[]
[]
[]
[]
[]
[]
[]
[]
[]
[]
[]
[]
[]
[]
[]
[]
[]
[]
[]
[]
[]
[]
[]
[]
[]
[]
[]
[]
[]
[]
[]
[]
[]
[]
[]
[]
[]
[]
[]
[]
[]
[]
[]
[]
[]
[]
[]
[]
[]
[]
[]
[]
[]
[]
[]
[]
[]
[]
[]
[]
[]
[]
[]
[]
[]
[]
[]
[]
[]
[]
[]
[]
[]
[]
[]
[]
[]
[]
[]
[]
[]
[]
[]
[]
[]
[]
[]
[]
[]
[]
[]
[]
[]
[]
[]
[]
[]
[]
[]
[]
[]
[]
[]
[]
[]
[]
[]
[]
[]
[]
[]
[]
[]
[]
[]
[]
[]
[]
[]
[]
[]
[]
[]
[]
[]
[]
[]
[]
[]
[]
[]
[]
[]
[]
[]
[]
[]
[]
[]
[]
[]
[]
[]
[]
[]
[]
[]
[]
[]
[]
[]
[]
[]
[]
[]
[]
[]
[]
[]
[]
[]
[]
[]
[]
[]
[]
[]
[]
[]
[]
[]
[]
[]
[]
[]
[]
[]
[]
[]
[]
[]
[]
[]
[]
[]
[]
[]
[]
[]
[]
[]
[]
[]
[]
[]
[]
[]
[]
[]
[]
[]
[]
[]
[]
[]
[]
[]
[]
[]
[]
[]
[]
[]
[]
[]
[]
[]
[]
[]
[]
[]
[]
[]
[]
[]
[]
[]
[]
[]
[]
[]
[]
[]
[]
[]
[]
[]
[]
[]
[]
[]
[]
[]
[]
[]
[]
[]
[]
[]
[]
[]
[]
[]
[]
[]
[]
[]
[]
[]
[]
[]
[]
[]
[]
[]
[]
[]
[]
[]
[]
[]
[]
[]
[]
[]
[]
[]
[]
[]
[]
[]
[]
[]
[]
[]
[]
[]
[]
[]
[]
[]
[]
[]
[]
[]
[]
[]
[]
[]
[]
[]
[]
[]
[]
[]
[]
[]
[]
[]
[]
[]
[]
[]
[]
[]
[]
[]
[]
[]
[]
[]
[]
[]
[]
[]
[]
[]
[]
[]
[]
[]
[]
[]
[]
[]
[]
[]
[]
[]
[]
[]
[]
[]
[]
[]
[]
[]
[]
[]
[]
[]
[]
[]
[]
[]
[]
[]
[]
[]
[]
[]
[]
[]
[]
[]
[]
[]
[]
[]
[]
[]
[]
[]
[]
[]
[]
[]
[]
[]
[]
[]
[]
[]
[]
[]
[]
[]
[]
[]
[]
[]
[]
[]
[]
[]
[]
[]
[]
[]
[]
[]
[]
[]
[]
[]
[]
[]
[]
[]
[]
[]
[]
[]
[]
[]
[]
[]
[]
[]
[]
[]
[]
[]
[]
[]
[]
[]
[]
[]
[]
[]
[]
[]
[]
[]
[]
[]
[]
[]
[]
[]
[]
[]
[]
[]
[]
[]
[]
[]
[]
[]
[]
[]
[]
[]
[]
[]
[]
[]
[]
[]
[]
[]
[]
[]
[]
[]
[]
[]
[]
[]
[]
[]
[]
[]
[]
[]
[]
[]
[]
[]
[]
[]
[]
[]
[]
[]
[]
[]
[]
[]
[]
[]
[]
[]
[]
[]
[]
[]
[]
[]
[]
[]
[]
[]
[]
[]
[]
[]
[]
[]
[]
[]
[]
[]
[]
[]
[]
[]
[]
[]
[]
[]
[]
[]
[]
[]
[]
[]
[]
[]
[]
[]
[]
[]
[]
[]
[]
[]
[]
[]
[]
[]
[]
[]
[]
[]
[]
[]
[]
[]
[]
[]
[]
[]
[]
[]
[]
[]
[]
[]
[]
[]
[]
[]
[]
[]
[]
[]
[]
[]
[]
[]
[]
[]
[]
[]
[]
[]
[]
[]
[]
[]
[]
[]
[]
[]
[]
[]
[]
[]
[]
[]
[]
[]
[]
[]
[]
[]
[]
[]
[]
[]
[]
[]
[]
[]
[]
[]
[]
[]
[]
[]
[]
[]
[]
[]
[]
[]
[]
[]
[]
[]
[]
[]
[]
[]
[]
[]
[]
[]
[]
[]
[]
[]
[]
[]
[]
[]
[]
[]
[]
[]
[]
[]
[]
[]
[]
[]
[]
[]
[]
[]
[]
[]
[]
[]
[]
[]
[]
[]
[]
[]
[]
[]
[]
[]
[]
[]
[]
[]
[]
[]
[]
[]
[]
[]
[]
[]
[]
[]
[]
[]
[]
[]
[]
[]
[]
[]
[]
[]
[]
[]
[]
[]
[]
[]
[]
[]
[]
[]
[]
[]
[]
[]
[]
[]
[]
[]
[]
[]
[]
[]
[]
[]
[]
[]
[]
[]
[]
[]
[]
[]
[]
[]
[]
[]
[]
[]
[]
[]
[]
[]
[]
[]
[]
[]
[]
[]
[]
[]
[]
[]
[]
[]
[]
[]
[]
[]
[]
[]
[]
[]
[]
[]
[]
[]
[]
[]
[]
[]
[]
[]
[]
[]
[]
[]
[]
[]
[]
[]
[]
[]
[]
[]
[]
[]
[]
[]
[]
[]
[]
[]
[]
[]
[]
[]
[]
[]
[]
[]
[]
[]
[]
[]
[]
[]
[]
[]
[]
[]
[]
[]
[]
[]
[]
[]
[]
[]
[]
[]
[]
[]
[]
[]
[]
[]
[]
[]
[]
[]
[]
[]
[]
[]
[]
[]
[]
[]
[]
[]
[]
[]
[]
[]
[]
[]
[]
[]
[]
[]
[]
[]
[]
[]
[]
[]
[]
[]
[]
[]
[]
[]
[]
[]
[]
[]
[]
[]
[]
[]
[]
[]
[]
[]
[]
[]
[]
[]
[]
[]
[]
[]
[]
[]
[]
[]
[]
[]
[]
[]
[]
[]
[]
[]
[]
[]
[]
[]
[]
[]
[]
[]
[]
[]
[]
[]
[]
[]
[]
[]
[]
[]
[]
[]
[]
[]
[]
[]
[]
[]
[]
[]
[]
[]
[]
[]
[]
[]
[]
[]
[]
[]
[]
[null,null,null,null,null,null,null,null,null,null,null,null,null,null,null,null,null,null,null,null,null,null,"S1=0"]

{"sheet":"СР 651N","index":15,"n_rows":35,"n_cols":21,"rows_kept":35,"cut":false,"hidden":true,"merged":[[3,3,5,9]]}
[]
[]
[null,"Увага: цей файл не є офіційним програмним забезпеченням Hilti",null,null,null,null,null,null,null,null,null,null,null,null,null,null,null,null,false,false,true]
[null," ",null,"Розрахунок витрат протипожежних подушок СР 651N"]
[]
[]
[]
[]
[]
[null,null,"Ширина проходки \"w\" : ",500," мм",null,null,"Кількість подушок : ",{"$f":"S20*D16","v":278},"шт."]
[]
[null,null,"Висота проходки \"h\" : ",500," мм",null,null,null,null,null,null,null,null,null,null,null,"Объем проходки : ",null,{"$f":"D10*D12*D14","v":50000000},"мм3"]
[]
[null,null,"Товщина проходки : ",200,"мм",null,null,null,null,null,null,null," ",null,null,null,"Расход на одну проходку L:",null,{"$f":"ROUNDUP(S12/(300*170*30),0)","v":33}]
[null,null,null,null,null,null,null,null,null,null,null,null,null,null,null,null,null,null,{"$f":"ROUNDUP(S13/(300*40*30),0)","v":0}]
[null,null,"Кількість проходок : ",2,"шт.",null,null,null,null,null,null,null,null,null,null,null,"Расход на одну проходку M:",null,{"$f":"ROUNDUP(S12/(300*80*30),0)","v":70}]
[null,null,null,null,null,null,null,null,null,null,null,null,null,null,null,null,null,null,0]
[null,null,"Ціна 1  подушки : ",200," грн. с НДС",null,null,null,null,null,null,null,null,null,null,null,"Расход на одну проходку S:",null,{"$f":"ROUNDUP(S12/(300*40*30),0)","v":139}]
[]
[null,null,null,null,null,"УВАГА! ПЕРЕКОНАЙТЕСЬ В НАЯВНОСТІ ДІЮЧОГО СЕРТИФІКАТУ.",null,null,null,null,null,null,null,null,null,null,"кол-во подушек на 1 проходку",null,{"$f":"IF(S3,S14,IF(T3,S16,IF(U3,S18,0)))","v":139}]
[]
[null,null,null,null,null,"ПРОДУКТ В ПРОЦЕСІ СЕРТИФІКАЦІЇ"]
[]
[]
[]
[]
[null,null,null,"Загальна вартість рішення  :  ",null,{"$f":"I10*D16*D18","v":111200}," грн. з ПДВ"]
[]
[]
[]
[]
[]
[]
[null,"У разі виникнення питань, ласкаво просимо звязатись "]
[null,"з регіональним представником Hilti чи клієнтською службою за тел. 0443905566"]

{"sheet":"CFS-BL","index":16,"n_rows":36,"n_cols":20,"rows_kept":36,"cut":false,"hidden":true,"merged":[[4,3,6,9],[18,5,18,11],[19,5,19,11]]}
[]
[]
[]
[null,"Увага: цей файл не є офіційним програмним забезпеченням Hilti"]
[null," ",null,"Розрахунок витрат протипожежних блоков CFS-BL"]
[]
[]
[]
[]
[null,null,null,null,null,null,"Розрахунок витрат"]
[null,null,"Ширина проходки \"w\" : ",500," мм",null,null," на одну проходку : ",{"$f":"ROUNDUP(S15,0)","v":39},"шт."]
[]
[null,null,"Висота проходки \"h\" : ",500," мм",null,null,null,null,null,null,null,null,null,null,null,"Объем проходки : ",null,{"$f":"D11*D13*D15","v":50000000},"мм3"]
[]
[null,null,"Товщина проходки : ",200,null,null,null,null,null,null,null,null," ",null,null,null,"Расход на одну проходку:",null,{"$f":"S13/(130*50*200)","v":38.46153846153846}]
[]
[null,null,"Кількість проходок : ",3]
[]
[null,null,"Ціна 1 блока (з ПДВ) : ",200," грн.","УВАГА! ПЕРЕКОНАЙТЕСЬ В НАЯВНОСТІ ДІЮЧОГО СЕРТИФІКАТУ"]
[null,null,null,null,null,"ПРОДУКТ В ПРОЦЕСІ СЕРТИФІКАЦІЇ"]
[]
[null,null,null,null,null,"Загалом необхідно блоків : ",{"$f":"I11*D17","v":117},null,"шт."]
[]
[null,null,null,null,null,"Загальна вартість рішення: ",{"$f":"G22*D19","v":23400},"грн. с НДС"]
[]
[]
[]
[]
[]
[]
[]
[]
[]
[]
[null,"У разі виникнення питань, ласкаво просимо звязатись "]
[null,"з регіональним представником Hilti чи клієнтською службою за тел. 0443905566"]

{"sheet":"СР636-универсальная проходка","index":17,"n_rows":40,"n_cols":26,"rows_kept":40,"cut":false,"hidden":true,"merged":[[2,5,4,9],[1,25,3,31]]}
["Увага: цей файл не є офіційним програмним забезпеченням Hilti"]
[null,null,null,null,null,null,null,null,null,null,null,null,null,null,null,null,null,null,null,null,null,false,null,null,null,"Розрахунок витрат"]
[null,null,null,null,null,"Розрахунок витрат протипожежного розчину СР 636 для універсальної проходки",null,null,null,null,null,null,"Вспомогательные ячейки:"]
[]
[]
[null,null,null,null,null,null,null,null,null,null,null,null,null,"Площадь проходки: ",{"$f":"D7*D9","v":250000}]
[null,null,"Ширина проходки \"w\" : ",500,"мм",null,null,null,null,null,null,null,null,"Объем заполнения + 10% :",{"$f":"IF(V2,(O6-O16)*D11*1.1,(O6-O16)*D11)","v":15000000}]
[null,null,null,null,null,null,null,null,null,null,null,null,null,"Заполнений проходки: ",{"$f":"(D13/100)","v":0.7}]
[null,null,"Висота проходки \"h\" : ",500,"мм"]
[]
[null,null,"Товщина проходки \"tA1\" :   ",200,"мм","УВАГА! ПЕРЕКОНАЙТЕСЬ В НАЯВНОСТІ ДІЮЧОГО СЕРТИФІКАТУ"]
[null,null,null,null,null,"ПРОДУКТ В ПРОЦЕСІ СЕРТИФІКАЦІЇ"]
[null,null,"Заповнення проходки : ",70,"%"]
[null,null,null,null,null,null,null,null,null,null,null,null,null,"Всего раствора мешков:",{"$f":"ROUNDUP((O7/22200000)*D15,0)","v":7}]
[null,null,"Кількість проходок : ",10,"шт.",null,null,null,null,null,null,null,null,"Расчет матики:"]
[null,null,null,null,null,null,null,null,null,null,null,null,null,"Площадь проходки заполненной кабелями:",{"$f":"(D13*O6)/100","v":175000}]
[null,null,"Ціна 1 мішка СР636 (з ПДВ) : ",200,"грн. з ПДВ",null,"Загальна вартість розчину :",{"$f":"D17*O14","v":1400},"грн. с НДС",null,null,null,null,"объем мастики:",{"$f":"SQRT(O16/3.14)*2*3.14*30*5*2","v":444769.60327792185}]
[null,null,null,null,null,null,null,null,null,null,null,null,null,"объем мастики+10%:",{"$f":"IF(V2,O17*D15*1.1,O17*D15)","v":4447696.0327792186},"мм3"]
[null,null,"Ціна 1 капсули СР611 (з ПДВ) : ",200,"грн. з ПДВ",null,"Загальна вартість мастики :",{"$f":"G25*D19","v":3000},"грн. с НДС",null,null,null,null,null,{"$f":"O18/1000","v":4447.6960327792185}]
[null,null,null,null,null,null,null,null,null,null,null,null,null,"Общее количество капсул 310мл: ",{"$f":"ROUNDUP(O19/310,0)","v":15}]
[]
[null,null,null,null,null,null,null,null,null,null,null,null,null,null,null,null,null,null,null,null,null,null,null,null,null,"Обсяг розчину:"]
[null,"Загалом необхідно мішків (20 кг) :",null,null,null,null,{"$f":"O14","v":7},"шт."]
[null,null,null,null,null,null,null,null,null,null,null,null,null,null,null,null,null,null,null,null,null,null,null,null,null,"V=(S1-S2)*te"]
[null,"Загалом необхідно мастики (капсул 310 мл):",null,null,null,null,{"$f":"O20","v":15},"шт.",null,null,null,null,null,null,null,null,null,null,null,null,null,null,null,null,null,"де"]
[null,"* Розрахунок приблизний. Фактичні витрати залежать від процесу монтажу",null,null,null,null,null,null,null,null,null,null,null,null,null,null,null,null,null,null,null,null,null,null,null,"te- товщина проходки;"]
[null,null,null,null,null,null,null,null,null,null,null,null,null,null,null,null,null,null,null,null,null,null,null,null,null,"S1- площина проходки;"]
[null,null,null,null,null,null,null,null,null,null,null,null,null,null,null,null,null,null,null,null,null,null,null,null,null,"S2- площа комунікацій, що проходять через проходку;"]
[]
[]
[]
[]
[]
[]
[]
[]
[]
[]
[null,"У разі виникнення питань, ласкаво просимо звязатись "]
[null,"з регіональним представником Hilti чи клієнтською службою за тел. 0443905566"]